Workbook

Sheet DHCS Only (hidden)
A1: For DHCS use only.
A2: Click button to lock or unlock all sheets for editing.
A3: This tab should be hidden when not in use.

Sheet 1. Information
A1: Press UP or DOWN arrow to read through table. Use UP or DOWN arrow to read through document. Press LEFT or RIGHT arrow to input needed information. | B1: STATE OF CALIFORNIA | E1: Department of Health Care Services
B2: HEALTH AND HUMAN SERVICES AGENCY
B4: DHCS 1822 A (02/19)
B5: Annual Mental Health Services Act (MHSA) Revenue and Expenditure Report
B6: ="Fiscal Year: "&D10 -> Fiscal Year: 2020/2021
B7: Information Worksheet
B9: 1 | C9: Date: | D9: 2021-12-31
B10: 2 | C10: ARER Fiscal Year (20YY-YY): | D10: 2020/2021
B11: 3 | C11: County: | D11: Kings
B12: 4 | C12: County Code: | D12: =IF(ISBLANK(D11),"",VLOOKUP(D11,Info_County_Code,2)) -> 16
B13: 5 | C13: Address: | D13: 460 Kings County Dr. Suite 101
B14: 6 | C14: City: | D14: Hanford
B15: 7 | C15: Zip: | D15: 93230
B16: 8 | C16: County Population: Over 200,000? (Yes or No) | D16: =IF(ISBLANK(D11),"",VLOOKUP(D11,County_Population,5,FALSE)) -> No
B17: 9 | C17: Name of Preparer: | D17: Renee Roselius
B18: 10 | C18: Title of Preparer: | D18: Accounting Technician
B19: 11 | C19: Preparer Contact Email: | D19: Renee.Roselius@co.kings.ca.us
B20: 12 | C20: Preparer Contact Telephone: | D20: 559-852-2988

Sheet Instructions 1. Information
A1: Press UP or DOWN arrow to read through the instructions.
A2: Row 1: Enter the date when the ARER was completed.
A3: Row 2: Enter the reporting fiscal year for the ARER.
A4: Row 3: Selection Only. Select the name of the County for which this ARER was prepared from the pull-down menu in the response cell.
A5: Row 4: No entry. This field will auto populate. The County code is consistent with the coding system used in the Data Collection and Reporting system.
A6: Row 5: Enter the administrative headquarters address for the County Mental Health or Behavioral Health Department as appropriate.
A7: Row 6: Enter the administrative headquarters city for the County Mental Health or Behavioral Health Department as appropriate.
A8: Row 7: Enter the administrative headquarters zip code for the County Mental Health or Behavioral Health Department as appropriate.
A9: Row 8: No entry. This field will auto-populate “Yes” if the County’s population is equal to or greater than 200,000 or “No” if the County’s population is less than 200,000. Population data is available at: http://dof.ca.gov/Forecasting/Demographics/Estimates/E-1/
A10: Row 9: Enter the name of the person who prepared the ARER or is responsible for responding to inquiries about the ARER.
A11: Row 10: Enter the title of the person who prepared the ARER or is responsible for responding to inquiries about the ARER.
A12: Row 11: Enter the contact Email address of the person who prepared the ARER or is responsible for responding to inquiries about the ARER.
A13: Row 12: Enter the contact telephone number of the person who prepared the ARER or is responsible for responding to inquiries about the ARER.

Sheet 2. Component Summary
A1: Press UP or DOWN arrow to navigate through section tables. Press UP and DOWN arrow to read expenditure types. Press LEFT or RIGHT arrow on each row to input funding amounts. | B1: STATE OF CALIFORNIA | I1: Department of Health Care Services
B2: HEALTH AND HUMAN SERVICES AGENCY
B4: DHCS 1822 B (02/19)
B5: ='1. Information'!B5 -> Annual Mental Health Services Act (MHSA) Revenue and Expenditure Report
B6: ='1. Information'!B6 -> Fiscal Year: 2020/2021
B7: Component Summary Worksheet
B9: County: | C9: =IF(ISBLANK('1. Information'!D11),"",'1. Information'!D11) -> Kings | F9: Date: | G9: =IF(ISBLANK('1. Information'!D9),"",'1. Information'!D9) -> 2021-12-31
D12: A | E12: B | F12: C | G12: D | H12: E | I12: F
B13: SECTION 1: Interest | D13: CSS | E13: PEI | F13: INN | G13: WET | H13: CFTN | I13: TOTAL
B14: 1 | C14: Component Interest Earned | D14: 54342.47 | E14: 10072.81 | F14: 18418.33 | G14: 0 | H14: 0 | I14: =SUM(D14:H14) -> 82833.61
B15: 2 | C15: Joint Powers Authority Interest Earned | D15: 0 | E15: 0 | F15: 0 | G15: 0 | H15: 0 | I15: =SUM(D15:H15) -> 0
D17: A | E17: B | F17: C
B18: SECTION 2: Prudent Reserve | D18: CSS | E18: PEI | F18: TOTAL
B19: 3 | C19: Local Prudent Reserve Beginning Balance | F19: 1184797.32
B20: 4 | C20: Transfer from Local Prudent Reserve | D20: 0 | E20: 0 | F20: =-D20-E20 -> 0
B21: 5 | C21: CSS Funds Transferred to Local Prudent Reserve | D21: ='3. CSS'!F24 -> 0 | F21: =SUM(D21:E21) -> 0
B22: 6 | C22: Local Prudent Reserve Adjustments | F22: =SUM('8. Adjustment (MHSA)'!F51:F80) -> 0
B23: 7 | C23: Local Prudent Reserve Ending Balance | F23: =F19+F20+F21+F22 -> 1184797.32
D25: A | E25: B | F25: C | G25: D | H25: E | I25: F
B26: SECTION 3: CSS Transfers to PEI, WET, CFTN, or Prudent Reserve | D26: CSS | E26: PEI | F26: WET | G26: CFTN | H26: PR | I26: TOTAL
B27: 8 | C27: Transfers | D27: =(E27+F27+G27+H27)*-1 -> 0 | E27: ='3. CSS'!F21 -> 0 | F27: ='3. CSS'!F22 -> 0 | G27: ='3. CSS'!F23 -> 0 | H27: ='3. CSS'!F24 -> 0 | I27: =SUM(D27:H27) -> 0 | J27: =IF(SUM(D27:H27)=I27,"","ERROR") -> 
D29: A | E29: B | F29: C | G29: D | H29: E | I29: F
B30: SECTION 4: Program Expenditures and Sources of Funding | D30: CSS | E30: PEI | F30: INN | G30: WET | H30: CFTN | I30: TOTAL
B31: 9 | C31: MHSA Funds | D31: ='3. CSS'!F27 -> 7397801.2 | E31: ='4. PEI'!F22 -> 891662.58 | F31: ='5. INN'!F23 -> 700026 | G31: ='6. WET'!F21 -> 0 | H31: ='7. CFTN'!F21 -> 0 | I31: =SUM(D31:H31) -> 8989489.78
B32: 10 | C32: Medi-Cal FFP | D32: ='3. CSS'!G27 -> 0 | E32: ='4. PEI'!G22 -> 0 | F32: ='5. INN'!G23 -> 0 | G32: ='6. WET'!G21 -> 0 | H32: ='7. CFTN'!G21 -> 0 | I32: 0
B33: 11 | C33: 1991 Realignment | D33: ='3. CSS'!H27 -> 0 | E33: ='4. PEI'!H22 -> 0 | F33: ='5. INN'!H23 -> 0 | G33: ='6. WET'!H21 -> 0 | H33: ='7. CFTN'!H21 -> 0 | I33: 0
B34: 12 | C34: Behavioral Health Subaccount | D34: ='3. CSS'!I27 -> 282464.73 | E34: ='4. PEI'!I22 -> 0 | F34: ='5. INN'!I23 -> 0 | G34: ='6. WET'!I21 -> 0 | H34: ='7. CFTN'!I21 -> 0 | I34: 282464.73
B35: 13 | C35: Other | D35: ='3. CSS'!J27 -> 70083.27 | E35: ='4. PEI'!J22 -> 0 | F35: ='5. INN'!J23 -> 0 | G35: ='6. WET'!J21 -> 0 | H35: ='7. CFTN'!J21 -> 0 | I35: 70083.27
B36: 14 | C36: TOTAL | D36: =SUM(D31:D35) -> 7750349.2 | E36: =SUM(E31:E35) -> 891662.58 | F36: 700026 | G36: 0 | H36: 0 | I36: =SUM(D36:H36) -> 9342037.78
D38: A
B39: SECTION 5: Miscellaneous MHSA Costs and Expenditures | D39: TOTAL
B40: 15 | C40: Total Annual Planning Costs | D40: ='3. CSS'!K15+'4. PEI'!K15+'5. INN'!K15+'6. WET'!K15+'7. CFTN'!K15 -> 50000
B41: 16 | C41: Total Evaluation Costs | D41: ='3. CSS'!F16+'4. PEI'!F16+'5. INN'!F20+'6. WET'!F16+'7. CFTN'!F16 -> 39780
B42: 17 | C42: Total Administration | D42: ='3. CSS'!F17+'4. PEI'!F17+'5. INN'!F16+'5. INN'!F19+'6. WET'!F17+'7. CFTN'!F17 -> 128315
B43: 18 | C43: Total WET RP | D43: 0
B44: 19 | C44: Total PEI SW | D44: ='4. PEI'!F18 -> 0
B45: 20 | C45: Total MHSA HP | D45: 0
B46: 21 | C46: Total Mental Health Services For Veterans | D46: =13630+46064.54 -> 59694.54

Sheet Instructions 2. Component Summa
A1: Use UP or DOWN arrow to navigate spreadsheet.
A2: County: No entry. This field will auto-populate from the Information worksheet.
A3: Date: No entry. This field will auto-populate from the Information worksheet.
A4: Row 1, Column A: Enter the amount of interest earned on MHSA funds that is attributable to the CSS Account.
A5: Row 1, Column B: Enter the amount of interest earned on MHSA funds that is attributable to the PEI Account.
A6: Row 1, Column C: Enter the amount of interest earned on MHSA funds that is attributable to the INN Account.
A7: Row 1, Column D: Enter the amount of interest earned on MHSA funds that is attributable to the WET Account.
A8: Row 1, Column E: Enter the amount of interest earned on MHSA funds that is attributable to the CFTN Account.
A9: Row 1, Column F: No entry. This amount is the sum of Row 1, Columns A-E.
A10: Row 1, Interest Earned: report interest earned on the local MHS Fund, by Account where applicable. Use one of the following methods to determine the amount of interest to apportion to each Account: 1. Actual interest earned by Account 2. Share of funding by Account
A11: Row 2, Column A: Enter the amount of interest earned on MHSA funds transferred to the JPA that is attributable to the CSS Account.
A12: Row 2, Column B: Enter the amount of interest earned on MHSA funds transferred to the JPA that is attributable to the PEI Account.
A13: Row 2, Column C: Enter the amount of interest earned on MHSA funds transferred to the JPA that is attributable to the INN Account.
A14: Row 2, Column D: Enter the amount of interest earned on MHSA funds transferred to the JPA that is attributable to the WET Account.
A15: Row 2, Column E: Enter the amount of interest earned on MHSA funds transferred to the JPA that is attributable to the CFTN Account.
A16: Row 2, Column F: No entry. This amount is the sum of Row 2, Columns A-E.
A17: Row 3, Column A: This cell is blank.
A18: Row 3, Column B: This cell is blank.
A19: Row 3, Column C: Enter the beginning balance of the Prudent Reserve. This amount must match the Prudent Reserve ending balance reported in the prior year's ARER.
A20: Row 4, Column A: Enter the amount of funds transferred from the Prudent Reserve to the CSS Account.
A21: Row 4, Column B: Enter the amount of funds transferred from the Prudent Reserve to the PEI Account.
A22: Row 4, Column C: No entry. This amount is the sum of Row 4, Columns A-B. The amount will reflect as a negative amount.
A23: Row 5, Column A: No entry. Data will autopopulate from Worksheet 3. CSS, Row 10, Column A.
A24: Row 5, Column B: This cell is blank.
A25: Row 5, Column C: No entry. Data will autopopulate from Row 5, Column A.
A26: Row 6, Column A: This cell is blank.
A27: Row 6, Column B: This cell is blank.
A28: Row 6, Column C: No entry. Data will autopopulate from Worksheet 8. Adjustment (MHSA), Section Three, Row 1-30, Column D.
A29: Row 7, Column A: This cell is blank.
A30: Row 7, Column B: This cell is blank.
A31: Row 7, Column C: No entry. This amount is the sum of Row 3, Column C, Row 4 Column C, Row 5 Column C, and Row 6 Column C.
A32: Row 8, Column A: No entry. Data will autopopulate from the Worksheet 3. CSS and is the sum of Row 7 Column A, Row 8 Column A, Row 9 Column A, and Row 10 Column A. The amount will reflect as a negative amount.
A33: Row 8, Column B: No entry. Data will auto populate from Worksheet 3. CSS, Row 7, Column A.
A34: Row 8, Column C: No entry. Data will auto populate from Worksheet 3. CSS, Row 8, Column A.
A35: Row 8, Column D: No entry. Data will auto populate from Worksheet 3. CSS, Row 9, Column A.
A36: Row 8, Column E: No entry. Data will auto populate from Worksheet 3. CSS, Row 10, Column A.
A37: Row 8, Column F: No entry. This amount is the sum of Row 8, Columns A-E.
A38: Row 9, Column A: No entry. Data will auto populate from Worksheet 3. CSS, Row 13, Column A.
A39: Row 9, Column B: No entry. Data will auto populate from Worksheet 4. PEI, Row 8, Column A.
A40: Row 9, Column C: No entry. Data will auto populate from Worksheet 5. INN, Row 9, Column A.
A41: Row 9, Column D: No entry. Data will auto populate from Worksheet 6. WET, Row 7, Column A.
A42: Row 9, Column E: No entry. Data will auto populate from Worksheet 7. CFTN, Row 5, Column A.
A43: Row 9, Column F: No entry. This amount is the sum of Row 9, Columns A-E.
A44: Row 10, Column A: No entry. Data will auto populate from Worksheet 3. CSS, Row 13, Column B.
A45: Row 10, Column B: No entry. Data will auto populate from Worksheet 4. PEI, Row 8, Column B.
A46: Row 10, Column C: No entry. Data will auto populate from Worksheet 5. INN, Row 9, Column B.
A47: Row 10, Column D: No entry. Data will auto populate from Worksheet 6. WET, Row 7, Column B.
A48: Row 10, Column E: No entry. Data will auto populate from Worksheet 7. CFTN, Row 5, Column B.
A49: Row 10, Column F: No entry. This amount is the sum of Row 10, Columns A-E.
A50: Row 11, Column A: No entry. Data will auto populate from Worksheet 3. CSS, Row 13, Column C.
A51: Row 11, Column B: No entry. Data will auto populate from Worksheet 4. PEI, Row 8, Column C.
A52: Row 11, Column C: No entry. Data will auto populate from Worksheet 5. INN, Row 9, Column C.
A53: Row 11, Column D: No entry. Data will auto populate from Worksheet 6. WET, Row 7, Column C.
A54: Row 11, Column E: No entry. Data will auto populate from Worksheet 7. CFTN, Row 5, Column C.
A55: Row 11, Column F: No entry. This amount is the sum of Row 11, Columns A-E.
A56: Row 12, Column A: No entry. Data will auto populate from Worksheet 3. CSS, Row 13, Column D.
A57: Row 12, Column B: No entry. Data will auto populate from Worksheet 4. PEI, Row 8, Column D.
A58: Row 12, Column C: No entry. Data will auto populate from Worksheet 5. INN, Row 9, Column D.
A59: Row 12, Column D: No entry. Data will auto populate from Worksheet 6. WET, Row 7, Column D.
A60: Row 12, Column E: No entry. Data will auto populate from Worksheet 7. CFTN, Row 5, Column D.
A61: Row 12, Column F: No entry. This amount is the sum of Row 12, Columns A-E.
A62: Row 13, Column A: No entry. Data will auto populate from Worksheet 3. CSS, Row 13, Column E.
A63: Row 13, Column B: No entry. Data will auto populate from Worksheet 4. PEI, Row 8, Column E.
A64: Row 13, Column C: No entry. Data will auto populate from Worksheet 5. INN, Row 9, Column E.
A65: Row 13, Column D: No entry. Data will auto populate from Worksheet 6. WET, Row 7, Column E.
A66: Row 13, Column E: No entry. Data will auto populate from Worksheet 7. CFTN, Row 5, Column E.
A67: Row 13, Column F: No entry. This amount is the sum of Row 13, Columns A-E.
A68: Row 14, Column A: No entry. This amount is the sum of Rows 9-13, Column A.
A69: Row 14, Column B: No entry. This amount is the sum of Rows 9-13, Column B.
A70: Row 14, Column C: No entry. This amount is the sum of Rows 9-13, Column C.
A71: Row 14, Column D: No entry. This amount is the sum of Rows 9-13, Column D.
A72: Row 14, Column E: No entry. This amount is the sum of Rows 9-13, Column E.
A73: Row 14, Column F: No entry. This amount is the sum of Row 9, Column A-E.
A74: Row 15, Column A: No entry. This amount is the sum of Worksheet 3. CSS Row 1 Column A, Worksheet 4. PEI Row 1 Column A, Worksheet 5. INN Row 1 Column A, Worksheet 6. WET Row 1 Column A, and Worksheet 7. CFTN Row 1 Column A.
A75: Row 16, Column A: No entry. This amount is the sum of Worksheet 3. CSS Row 2 Column A, Worksheet 4. PEI Row 2 Column A, Worksheet 5. INN Row 6 Column A, Worksheet 6. WET Row 2 Column A, and Worksheet 7. CFTN Row 2 Column A.
A76: Row 17, Column A: No entry. This amount is the sum of Worksheet 3. CSS Row 3 Column A, Worksheet 4. PEI Row 3 Column A, Worksheet 5. INN Rows 2 and 5 Column A, Worksheet 6. WET Row 3 Column A, and Worksheet 7. CFTN Row 3 Column A.
A77: Row 18, Column A: Enter the amount of WET Regional Partnership funds expended for goods or services during the reporting fiscal year.
A78: Row 19, Column A: No entry. Data will auto populate from Worksheet 4. PEI, Section One, Row 4, Column A.
A79: Row 20, Column A: Enter the amount of unencumbered MHSA Housing Program funds expended for goods or services, if applicable.
A80: Row 21, Column A: Enter the total MHSA funds spent on mental health services provided to veterans for all programs and projects funded from the CSS, PEI, and INN accounts, combined. Enter $0 if there were no MHSA funds spent to provide services to veterans. Counties do not need to report MHSA funds spent on mental health services for veterans separately by component.

Sheet 3. CSS
A1: Press UP or DOWN arrow to read through C S S spreadsheet. In section 1, use UP and DOWN arrow for different C S S expenditure types. Use LEFT or RIGHT arrow on these cell rows to input amount of funding type. In section 2, use LEFT or RIGHT arrow to navigate different headers. Use UP and DOWN arrow to input dollar amount designated for each column. | B1: STATE OF CALIFORNIA | L1: Department of Health Care Services
B2: HEALTH AND HUMAN SERVICES AGENCY
B4: DHCS 1822 C (02/19)
B5: ='1. Information'!B5 -> Annual Mental Health Services Act (MHSA) Revenue and Expenditure Report
B6: ='1. Information'!B6 -> Fiscal Year: 2020/2021
B7: Community Services and Supports (CSS) Summary Worksheet
B9: County: | D9: =IF(ISBLANK('1. Information'!D11),"",'1. Information'!D11) -> Kings | F9: Date: | G9: =IF(ISBLANK('1. Information'!D9),"",'1. Information'!D9) -> 2021-12-31
B11: SECTION ONE
F13: A | G13: B | H13: C | I13: D | J13: E | K13: F
F14: Total MHSA Funds (Including Interest) | G14: Medi-Cal FFP | H14: 1991 Realignment | I14: Behavioral Health Subaccount | J14: Other | K14: Grand Total
B15: 1 | C15: CSS Annual Planning Costs | F15: 50000 | G15: 0 | H15: 0 | I15: 0 | J15: 0 | K15: =SUM(F15:J15) -> 50000
B16: 2 | C16: CSS Evaluation Costs | F16: 0 | G16: 0 | H16: 0 | I16: 0 | J16: 0 | K16: =SUM(F16:J16) -> 0
B17: 3 | C17: CSS Administration Costs | F17: 0 | G17: 0 | H17: 0 | I17: 0 | J17: 0 | K17: 0
B18: 4 | C18: CSS Funds Transferred to JPA | F18: 0 | K18: =F18 -> 0
B19: 5 | C19: CSS Expenditures Incurred by JPA | F19: 0 | K19: =F19 -> 0
B20: 6 | C20: CSS Funds Transferred to CalHFA | F20: 0 | K20: 0
B21: 7 | C21: CSS Funds Transferred to PEI | F21: 0 | K21: 0
B22: 8 | C22: CSS Funds Transferred to WET | F22: 0 | K22: 0
B23: 9 | C23: CSS Funds Transferred to CFTN | F23: 0 | K23: 0
B24: 10 | C24: CSS Funds Transferred to PR | F24: 0 | K24: 0
B25: 11 | C25: CSS Program Expenditures | F25: =SUM(G34:G133) -> 7347801.2 | G25: =SUM(H34:H133) -> 0 | H25: =SUM(I34:I133) -> 0 | I25: =SUM(J34:J133) -> 282464.73 | J25: =SUM(K34:K133) -> 70083.27 | K25: =SUM(F25:J25) -> 7700349.2
B26: 12 | C26: Total CSS Expenditures (Excluding Funds Transferred to JPA) | F26: =SUM(F15:F17,F19:F25) -> 7397801.2 | G26: =SUM(G15:G17,G25) -> 0 | H26: =SUM(H15:H17,H25) -> 0 | I26: =SUM(I15:I17,I25) -> 282464.73 | J26: =SUM(J15:J17,J25) -> 70083.27 | K26: =SUM(F26:J26) -> 7750349.2
B27: 13 | C27: Total CSS Expenditures (Excluding Funds Transferred to JPA, PEI, WET, CFTN and PR) | F27: =SUM(F15:F17,F19,F20,F25) -> 7397801.2 | G27: =SUM(G15:G17,G25) -> 0 | H27: =SUM(H15:H17,H25) -> 0 | I27: 282464.73 | J27: 70083.27 | K27: =SUM(F27:J27) -> 7750349.2
B30: SECTION TWO
C32: A | D32: B | E32: C | F32: D | G32: E | H32: F | I32: G | J32: H | K32: I | L32: J
B33: # | C33: County Code | D33: Program Name | E33: Prior Program Name | F33: Program Type | G33: Total MHSA Funds (Including Interest) | H33: Medi-Cal FFP | I33: 1991 Realignment | J33: Behavioral Health Subaccount | K33: Other | L33: Grand Total
B34: 14 | C34: =IF(L34<>0,VLOOKUP($D$9,Info_County_Code,2,FALSE),"") -> 16 | D34: Wraparound Services-Children/ TAY FSP | E34: Aspiranet | F34: FSP | G34: 1952533 | L34: =SUM(G34:K34) -> 1952533
B35: 15 | C35: 16 | D35: Assertive Community Treatment (ACT-MHS) | F35: FSP | G35: 1736829.15 | K35: 4001.27 | L35: =SUM(G35:K35) -> 1740830.42
B36: 16 | C36: 16 | D36: Collabotative Justice Treatment Court (CJTC) | F36: Non-FSP | G36: 206550.56 | K36: 17905 | L36: 224455.56
B37: 17 | C37: 16 | D37: Mental Health Services for Domestic Violence Survivors (Barabara Seville_ | F37: Non-FSP | G37: 114021.28 | K37: 14069 | L37: 128090.28
B38: 18 | C38: 16 | D38: Kings Whole Person Care (KARELINK) | F38: Non-FSP | G38: 654331.36 | K38: 33408 | L38: 687739.36
B39: 19 | C39: 16 | D39: Kings View | F39: FSP | G39: 2445238.17 | J39: 282464.73 | K39: 700 | L39: 2728402.9
B40: 20 | C40: 16 | D40: Warm Line (Kings-Tulare Warm Line Kingsview) | F40: Non-FSP | G40: 238297.68 | L40: 238297.68
B41: 21 | L41: 0
B42: 22 | L42: 0
B43: 23 | L43: 0
B44: 24 | L44: 0
B45: 25 | L45: 0
B46: 26 | L46: 0
B47: 27 | L47: 0
B48: 28 | L48: 0
B49: 29 | L49: 0
B50: 30 | L50: 0
B51: 31 | L51: 0
B52: 32 | L52: 0
B53: 33 | L53: 0
B54: 34 | L54: 0
B55: 35 | L55: 0
B56: 36 | L56: 0
B57: 37 | L57: 0
B58: 38 | L58: 0
B59: 39 | L59: 0
B60: 40 | L60: 0
B61: 41 | L61: 0
B62: 42 | L62: 0
B63: 43 | L63: 0
B64: 44 | L64: 0
B65: 45 | L65: 0
B66: 46 | C66: =IF(L66<>0,VLOOKUP($D$9,Info_County_Code,2,FALSE),"") ->  | L66: 0
B67: 47 | L67: 0
B68: 48 | L68: 0
B69: 49 | L69: 0
B70: 50 | L70: 0
B71: 51 | L71: 0
B72: 52 | L72: 0
B73: 53 | L73: 0
B74: 54 | L74: 0
B75: 55 | L75: 0
B76: 56 | L76: 0
B77: 57 | L77: 0
B78: 58 | L78: =SUM(G78:K78) -> 0
B79: 59 | L79: 0
B80: 60 | L80: 0
B81: 61 | L81: 0
B82: 62 | L82: 0
B83: 63 | L83: 0
B84: 64 | L84: 0
B85: 65 | L85: 0
B86: 66 | L86: 0
B87: 67 | L87: 0
B88: 68 | L88: 0
B89: 69 | L89: 0
B90: 70 | L90: 0
B91: 71 | L91: 0
B92: 72 | L92: 0
B93: 73 | L93: 0
B94: 74 | L94: 0
B95: 75 | L95: 0
B96: 76 | L96: 0
B97: 77 | L97: 0
B98: 78 | C98: =IF(L98<>0,VLOOKUP($D$9,Info_County_Code,2,FALSE),"") ->  | L98: 0
B99: 79 | L99: =SUM(G99:K99) -> 0
B100: 80 | L100: 0
B101: 81 | L101: 0
B102: 82 | L102: 0
B103: 83 | L103: 0
B104: 84 | L104: 0
B105: 85 | L105: 0
B106: 86 | L106: 0
B107: 87 | L107: 0
B108: 88 | L108: 0
B109: 89 | L109: 0
B110: 90 | L110: 0
B111: 91 | L111: =SUM(G111:K111) -> 0
B112: 92 | L112: =SUM(G112:K112) -> 0
B113: 93 | L113: 0
B114: 94 | L114: 0
B115: 95 | L115: 0
B116: 96 | L116: 0
B117: 97 | L117: 0
B118: 98 | L118: 0
B119: 99 | L119: 0
B120: 100 | L120: 0
B121: 101 | L121: =SUM(G121:K121) -> 0
B122: 102 | L122: =SUM(G122:K122) -> 0
B123: 103 | L123: 0
B124: 104 | L124: =SUM(G124:K124) -> 0
B125: 105 | L125: 0
B126: 106 | L126: 0
B127: 107 | L127: 0
B128: 108 | L128: =SUM(G128:K128) -> 0
B129: 109 | L129: =SUM(G129:K129) -> 0
B130: 110 | L130: =SUM(G130:K130) -> 0
B131: 111 | L131: =SUM(G131:K131) -> 0
B132: 112 | L132: 0
B133: 113 | L133: 0

Sheet Instructions 3. CSS
A1: Use UP or DOWN arrow to navigate spreadsheet.
A2: County: No entry. This field will auto-populate from the Information worksheet.
A3: Date: No entry. This field will auto-populate from the Information worksheet.
A4: Row 1, Column A: Enter the amount of MHSA funds, including interest, expended for CSS Annual Planning.
A5: Row 1, Column B: Enter the amount of Medi-Cal FFP funds expended for CSS Annual Planning.
A6: Row 1, Column C: Enter the amount of 1991 Realignment funds expended for CSS Annual Planning.
A7: Row 1, Column D: Enter the amount of Behavioral Health Subaccount funds expended for CSS Annual Planning.
A8: Row 1, Column E: Enter the amount of Other funds expended for CSS Annual Planning. Other funds include funding from sources not otherwise identified such as from local General Fund or other local sources, or from sources such as Federal grants or other grants.
A9: Row 1, Column F: No entry. This amount is the sum of Row 1, Columns A-E.
A10: Row 2, Column A: Enter the amount of MHSA funds, including interest, expended for CSS Evaluation.
A11: Row 2, Column B: Enter the amount of Medi-Cal FFP funds expended for CSS Evaluation.
A12: Row 2, Column C: Enter the amount of 1991 Realignment funds expended for CSS Evaluation.
A13: Row 2, Column D: Enter the amount of Behavioral Health subaccount funds expended for CSS Evaluation.
A14: Row 2, Column E: Enter the amount of Other funds expended for CSS Evaluation.
A15: Row 2, Column F: No entry. This amount is the sum of Row 2, Columns A-E.
A16: Row 3, Column A: Enter the amount of MHSA funds, including interest, expended for CSS Administration. This amount should include direct administrative costs and an appropriate allocation of indirect costs. Direct administrative costs are administrative costs that only benefit CSS programs or services. Indirect administrative costs are those administrative costs that are incurred for a common or joint purpose and cannot be readily identified as benefiting only one MHSA component. Counties must use an appropriate allocation method to allocate indirect costs to the CSS Account. The share of costs attributed to the CSS Account should be in proportion to the extent the CSS programs or services benefit from the support activity. Counties must maintain proper documentation of the allocation methodology used to allocate indirect costs to administration of CSS programs or services. To avoid double-counting, do not include costs incurred as both Administration Costs and either Annual Planning Costs, Evaluation Costs or Program Expenditures.
A17: Row 3, Column B: This cell is blank.
A18: Row 3, Column C: This cell is blank.
A19: Row 3, Column D: This cell is blank.
A20: Row 3, Column E: This cell is blank.
A21: Row 3, Column F: No entry. This amount is equal to Row 3, Column A.
A22: Row 4, Column A: Enter the amount of MHSA funds, including interest, transferred to a Joint Powers Authority (JPA) for CSS programs.
A23: Row 4, Column B: This cell is blank.
A24: Row 4, Column C: This cell is blank.
A25: Row 4, Column D: This cell is blank.
A26: Row 4, Column E: This cell is blank.
A27: Row 4, Column F: No entry. This amount is equal to Row 4, Column A.
A28: Row 5, Column A: Enter the amount of MHSA funds, including interest, expended by a JPA on behalf of the County during the reporting fiscal year for authorized CSS goods or services. Funds reported here as transferred will not increase the Total CSS Expenditures (Row 12).
A29: Row 5, Column B: This cell is blank.
A30: Row 5, Column C: This cell is blank.
A31: Row 5, Column D: This cell is blank.
A32: Row 5, Column E: This cell is blank.
A33: Row 5, Column F: No entry. This amount is equal to Row 5, Column A.
A34: Row 6, Column A: Enter the amount of MHSA funds, including interest, transferred to CalHFA during the reporting fiscal year for the Special Needs Housing Program (SNHP). CalHFA operates the SNHP on behalf of jurisdictions throughout California. The SNHP allows local governments to use Mental Health Services Act (MHSA) funds and other local funds, as appropriate, to provide financing for the development of permanent supportive rental housing that includes units dedicated for individuals with serious mental illness, and their families, who are homeless or at risk of homelessness. Participation requires a completed SNHP Participation Agreement between CalHFA and the County.
A35: Row 6, Column B: This cell is blank.
A36: Row 6, Column C: This cell is blank.
A37: Row 6, Column D: This cell is blank.
A38: Row 6, Column E: This cell is blank.
A39: Row 6, Column F: No entry. This amount is equal to Row 6, Column A.
A40: Row 7, Column A: Enter the amount of MHSA funds, including interest, transferred from the CSS account to PEI during the reporting fiscal year.
A41: Row 7, Column B: This cell is blank.
A42: Row 7, Column C: This cell is blank.
A43: Row 7, Column D: This cell is blank.
A44: Row 7, Column E: This cell is blank.
A45: Row 7, Column F: No entry. This amount is equal to Row 7, Column A.
A46: Row 8, Column A: Enter the amount of MHSA funds, including interest, transferred from the CSS account to WET during the reporting fiscal year.
A47: Row 8, Column B: This cell is blank.
A48: Row 8, Column C: This cell is blank.
A49: Row 8, Column D: This cell is blank.
A50: Row 8, Column E: This cell is blank.
A51: Row 8, Column F: No entry. This amount is equal to Row 8, Column A.
A52: Row 9, Column A: Enter the amount of MHSA funds, including interest, transferred from the CSS account to CFTN during the reporting fiscal year.
A53: Row 9, Column B: This cell is blank.
A54: Row 9, Column C: This cell is blank.
A55: Row 9, Column D: This cell is blank.
A56: Row 9, Column E: This cell is blank.
A57: Row 9, Column F: No entry. This amount is equal to Row 9, Column A.
A58: Row 10, Column A: Enter the amount of MHSA funds, including interest, transferred from the CSS account to Prudent Reserve during the reporting fiscal year.
A59: Row 10, Column B: This cell is blank.
A60: Row 10, Column C: This cell is blank.
A61: Row 10, Column D: This cell is blank.
A62: Row 10, Column E: This cell is blank.
A63: Row 10, Column F: No entry. This amount is equal to Row 10, Column A.
A64: Row 11, Column A: No entry. This amount is equal to Rows 14-113, Column E.
A65: Row 11, Column B: No entry. This amount is equal to Rows 14-113, Column F.
A66: Row 11, Column C: No entry. This amount is equal to Rows 14-113, Column G.
A67: Row 11, Column D: No entry. This amount is equal to Rows 14-113, Column H.
A68: Row 11, Column E: No entry. This amount is equal to Rows 14-113, Column I.
A69: Row 11, Column F: No entry. This amount is equal to the sum of Row 11, Columns A-E.
A70: Row 12, Column A: No entry. This amount is equal to the sum of Rows 1-3 and 5-11, Column A.
A71: Row 12, Column B: No entry. This amount is equal to the sum of Rows 1-3 and 11, Column B.
A72: Row 12, Column C: No entry. This amount is equal to the sum of Rows 1-3 and 11, Column C.
A73: Row 12, Column D: No entry. This amount is equal to the sum of Rows 1-3 and 11, Column D.
A74: Row 12, Column E: No entry. This amount is equal to the sum of Rows 1-3 and 11, Column E.
A75: Row 12, Column F: No entry. This amount is equal to the sum of Row 12, Columns A-E.
A76: Row 13, Column A: No entry. This amount is equal to the sum of Rows 1-3, 5-6, and 11, Column A.
A77: Row 13: Column B: No entry. This amount is equal to the sum of Rows 1-3 and 11, Column B.
A78: Row 13: Column C: No entry. This amount is equal to the sum of Rows 1-3 and 11, Column C.
A79: Row 13: Column D: No entry. This amount is equal to the sum of Rows 1-3 and 11, Column D.
A80: Row 13: Column E: No entry. This amount is equal to the sum of Rows 1-3 and 11, Column E.
A81: Row 13: Column F: No entry. This amount is equal to the sum of Row 13, Columns A-E.
A82: Rows 14-113, Column A: No entry. This field auto-populates as the County enters expenditure data and is determined according to the County Name entered on Worksheet 1. Information, Row 3. The County Code corresponds to the numeric ID code used to identify the County in the Data Collection and Reporting system.
A83: Rows 14-113 Column B: Enter the Program name for each CSS program funded by the CSS Account. Program name must be consistent with Program Name provided in the most recent MHSA Three-Year Program and Expenditure Plan or Annual Update covering the same Fiscal Year. If a County has changed the name of a Program subsequent to publication of the relevant Three-Year Program and Expenditure Plan or Annual Update, the County must provide the name change on worksheet 10. Comments.
A84: Rows 14-113, Column C: If the Program name is identical to the Program name reported in the prior year ARER or this is a new program this reporting year, no entry. If the Program name has changed from what was reported on the prior year ARER, enter the name used to identify this Program in the prior year ARER. If this program represents a combination of two or more programs formerly reported separately, or if this program was formerly combined with another Program, leave this field blank, but provide a comment on the Worksheet 10.
A85: Rows 14-113, Column D: Selection only. Select the program type from the drop-down menu. Options are Full-Service Partnership (FSP) or non-Full-Service Partnership (Non-FSP). Non-FSP includes General System Development and Outreach and Engagement programs.
A86: Rows 14-113, Column E: Enter the amount of MHSA funds, including Interest, expended for goods and services delivered in each CSS program during the reporting fiscal year.
A87: Rows 14-113, Column F: Enter the amount of Medi-Cal FFP funds expended for goods and services delivered in each CSS program during the reporting fiscal year.
A88: Rows 14-113, Column G: Enter the amount of 1991 Realignment funds expended for goods and services delivered in each CSS program during the reporting fiscal year.
A89: Rows 14-113, Column H: Enter the amount of Behavioral Health Subaccount funds expended for goods and services delivered in each CSS program during the reporting fiscal year.
A90: Rows 14-113, Column I: Enter the amount of Other funds expended for goods and services delivered in each CSS program during the reporting fiscal year.
A91: Rows 14-113, Column J: No entry. This field represents the sum of Rows 14-113, Columns E-I .

Sheet 4. PEI
A1: Press UP or DOWN arrow to read through P E I spreadsheet. In section 1, use the UP and DOWN arrow for different P E I expenditure types. Use LEFT or RIGHT arrow on these cell rows to input amount of funding type. In section 2, use LEFT or RIGHT and UP and DOWN arrows to navigate headers. In section 3, use LEFT or RIGHT arrows to navigate headers for P E I program components on the header rows. Use UP or DOWN arrows to read each Program Name and LEFT or RIGHT arrows on the rows below the headers to input dollar amount needed. | B1: STATE OF CALIFORNIA | Q1: Department of Health Care Services
B2: HEALTH AND HUMAN SERVICES AGENCY
B4: DHCS 1822 D (02/19)
B5: ='1. Information'!B5 -> Annual Mental Health Services Act (MHSA) Revenue and Expenditure Report
B6: ='1. Information'!B6 -> Fiscal Year: 2020/2021
B7: Prevention and Early Intervention (PEI) Summary Worksheet
B9: County: | D9: =IF(ISBLANK('1. Information'!D11),"",'1. Information'!D11) -> Kings | E9: =IF(ISBLANK('1. Information'!D11),"",'1. Information'!D11) -> Kings | F9: Date: | G9: =IF(ISBLANK('1. Information'!D9),"",'1. Information'!D9) -> 2021-12-31
B11: SECTION ONE
F13: A | G13: B | H13: C | I13: D | J13: E | K13: F
F14: Total MHSA Funds (Including Interest) | G14: Medi-Cal FFP | H14: 1991 Realignment | I14: Behavioral Health Subaccount | J14: Other | K14: Grand Total
B15: 1 | C15: PEI Annual Planning Costs | F15: 0 | G15: 0 | H15: 0 | I15: 0 | J15: 0 | K15: =SUM(F15:J15) -> 0
B16: 2 | C16: PEI Evaluation Costs | F16: 0 | G16: 0 | H16: 0 | I16: 0 | J16: 0 | K16: =SUM(F16:J16) -> 0
B17: 3 | C17: PEI Administration Costs | F17: 0 | G17: 0 | H17: 0 | I17: 0 | J17: 0 | K17: 0
B18: 4 | C18: PEI Funds Expended by CalMHSA for PEI Statewide | F18: 0 | K18: =F18 -> 0
B19: 5 | C19: PEI Funds Transferred to JPA | F19: 0 | K19: =F19 -> 0
B20: 6 | C20: PEI Expenditures Incurred by JPA | F20: 0 | K20: 0
B21: 7 | C21: PEI Program Expenditures | F21: =SUMIF($G$34:$G$133,"Combined Summary",L$34:L$133) + SUMIF($F$34:$F$133,"Standalone",L$34:L$133) -> 891662.58 | G21: =SUMIF($G$34:$G$133,"Combined Summary",M$34:M$133) + SUMIF($F$34:$F$133,"Standalone",M$34:M$133) -> 0 | H21: =SUMIF($G$34:$G$133,"Combined Summary",N$34:N$133) + SUMIF($F$34:$F$133,"Standalone",N$34:N$133) -> 0 | I21: =SUMIF($G$34:$G$133,"Combined Summary",O$34:O$133) + SUMIF($F$34:$F$133,"Standalone",O$34:O$133) -> 0 | J21: =SUMIF($G$34:$G$133,"Combined Summary",P$34:P$133) + SUMIF($F$34:$F$133,"Standalone",P$34:P$133) -> 0 | K21: 891662.58
B22: 8 | C22: Total PEI Expenditures (Excluding Transfers and PEI Statewide) | F22: =SUM(F15:F17,F20:F21) -> 891662.58 | G22: =SUM(G15:G17,G20:G21) -> 0 | H22: 0 | I22: 0 | J22: 0 | K22: 891662.58
B24: SECTION TWO
E26: A | F26: B
E27: Percent Expended for Clients Age 25 and Under, All PEI | F27: Percent Expended for Clients Age 25 and Under, JPA
B28: 9 | D28: MHSA PEI Fund Expenditures in Program to Clients Age 25 and Under (calculated from weighted program values) divided by Total MHSA PEI Expenditures | E28: =IF(F22=0,"0%",((SUMPRODUCT($K$34:$K$133,$L$34:$L$133)+(F20*F28))/$F$22)) -> 0.1796322574 | F28: 0
B30: SECTION THREE
C32: A | D32: B | E32: C | F32: D | G32: E | H32: F | I32: G | J32: H | K32: I | L32: J | M32: K | N32: L | O32: M | P32: N | Q32: O
B33: # | C33: County Code | D33: Program Name | E33: Prior Program Name | F33: Combined/Standalone Program | G33: Program Type | H33: Program Activity Name (in Combined Program) | I33: Subtotal Percentage for Combined Program | J33: Percent of PEI Expended on Clients Age 25 & Under (Standalone and Program Activities in Combined Program) | K33: Percent of PEI Expended on Clients Age 25 & Under (Combined Summary and Standalone) | L33: Total MHSA Funds (Including Interest) | M33: Medi-Cal FFP | N33: 1991 Realignment | O33: Behavioral Health Subaccount | P33: Other | Q33: Grand Total | R33: Check
B34: 10 | C34: =IF(AND(NOT(COUNTA(D34:J34)),(NOT(COUNTA(L34:P34)))),"",VLOOKUP($D$9,Info_County_Code,2,FALSE)) -> 16 | D34: School Based Services | F34: Standalone | G34: Prevention | I34: 1 | J34: 1 | K34: =IF(OR(G34="Combined Summary",F34="Standalone"),(SUMPRODUCT(--(D$34:D$133=D34),I$34:I$133,J$34:J$133)),"") -> 1 | L34: 15466.64 | Q34: =SUM(L34:P34) -> 15466.64 | R34: =IF(OR(G34="Combined Summary",F34="Standalone"),(SUMIF(D$34:D$133,D34,I$34:I$133)),"") -> 1 | S34: =IF(AND(F34="Standalone",NOT(R34=1)),"ERROR",IF(AND(G34="Combined Summary",NOT(R34=1)),"ERROR","")) -> 
B35: 11 | C35: 16 | D35: Prevention and Wellness - Support Groups | F35: Standalone | G35: Prevention | I35: 1 | J35: 0.1 | K35: =IF(OR(G35="Combined Summary",F35="Standalone"),(SUMPRODUCT(--(D$34:D$133=D35),I$34:I$133,J$34:J$133)),"") -> 0.1 | L35: 56266.46 | Q35: =SUM(L35:P35) -> 56266.46 | R35: =IF(OR(G35="Combined Summary",F35="Standalone"),(SUMIF(D$34:D$133,D35,I$34:I$133)),"") -> 1 | S35: =IF(AND(F35="Standalone",NOT(R35=1)),"ERROR",IF(AND(G35="Combined Summary",NOT(R35=1)),"ERROR","")) -> 
B36: 12 | C36: 16 | D36: Early Intervention Clinical Services (EICS) | F36: Standalone | G36: Early Intervention | I36: 1 | J36: 1 | K36: 1 | L36: 0 | Q36: 0 | R36: 1
B37: 13 | C37: 16 | D37: Community Wide Outreach and Engagement Education/Training | F37: Standalone | G37: Outreach | I37: 1 | J37: 0.15 | K37: 0.15 | L37: 28520.13 | Q37: 28520.13 | R37: 1
B38: 14 | C38: 16 | D38: Community Wide Stigma and Discrimination Reduction | F38: Standalone | G38: Stigma & Discrimination Reduction | I38: 1 | J38: 0.25 | K38: 0.25 | L38: 153436.55 | Q38: 153436.55 | R38: 1
B39: 15 | C39: 16 | D39: Suicide Prevention | F39: Standalone | G39: Suicide Prevention | I39: 1 | J39: 0.35 | K39: 0.35 | L39: 184273.97 | Q39: 184273.97 | R39: 1
B40: 16 | C40: 16 | D40: Senior Access for Engagement (SAFE) | F40: Standalone | G40: Access and Linkage | I40: 1 | J40: 0 | K40: 0 | L40: 308494.15 | Q40: 308494.15 | R40: 1
B41: 17 | C41: 16 | D41: 2-1-1 | E41: Access and Linkage program | F41: Standalone | G41: Access and Linkage | I41: 1 | J41: 0.22 | K41: 0.22 | L41: 145204.68 | Q41: 145204.68 | R41: 1
B42: 18 | Q42: 0
B43: 19 | Q43: 0
B44: 20 | Q44: 0
B45: 21 | Q45: 0
B46: 22 | Q46: 0
B47: 23 | Q47: 0
B48: 24 | Q48: 0
B49: 25 | Q49: 0
B50: 26 | Q50: 0
B51: 27 | Q51: 0
B52: 28 | Q52: 0
B53: 29 | Q53: 0
B54: 30 | Q54: 0
B55: 31 | Q55: 0
B56: 32 | Q56: 0
B57: 33 | Q57: 0
B58: 34 | Q58: 0
B59: 35 | Q59: 0
B60: 36 | Q60: 0
B61: 37 | Q61: 0
B62: 38 | Q62: 0
B63: 39 | Q63: 0
B64: 40 | Q64: 0
B65: 41 | Q65: 0
B66: 42 | C66: =IF(AND(NOT(COUNTA(D66:J66)),(NOT(COUNTA(L66:P66)))),"",VLOOKUP($D$9,Info_County_Code,2,FALSE)) ->  | Q66: 0
B67: 43 | Q67: 0
B68: 44 | Q68: 0
B69: 45 | Q69: 0
B70: 46 | Q70: 0
B71: 47 | Q71: 0
B72: 48 | Q72: 0
B73: 49 | Q73: 0
B74: 50 | Q74: 0
B75: 51 | Q75: 0
B76: 52 | Q76: 0
B77: 53 | Q77: 0
B78: 54 | Q78: 0
B79: 55 | Q79: 0
B80: 56 | Q80: 0
B81: 57 | Q81: 0
B82: 58 | Q82: 0
B83: 59 | Q83: 0
B84: 60 | Q84: 0
B85: 61 | Q85: 0
B86: 62 | Q86: 0
B87: 63 | Q87: 0
B88: 64 | Q88: 0
B89: 65 | Q89: 0
B90: 66 | Q90: 0
B91: 67 | Q91: =SUM(L91:P91) -> 0
B92: 68 | Q92: 0
B93: 69 | Q93: 0
B94: 70 | Q94: 0
B95: 71 | Q95: 0
B96: 72 | Q96: 0
B97: 73 | Q97: 0
B98: 74 | C98: =IF(AND(NOT(COUNTA(D98:J98)),(NOT(COUNTA(L98:P98)))),"",VLOOKUP($D$9,Info_County_Code,2,FALSE)) ->  | Q98: 0
B99: 75 | K99: =IF(OR(G99="Combined Summary",F99="Standalone"),(SUMPRODUCT(--(D$34:D$133=D99),I$34:I$133,J$34:J$133)),"") ->  | Q99: =SUM(L99:P99) -> 0 | R99: =IF(OR(G99="Combined Summary",F99="Standalone"),(SUMIF(D$34:D$133,D99,I$34:I$133)),"") ->  | S99: =IF(AND(F99="Standalone",NOT(R99=1)),"ERROR",IF(AND(G99="Combined Summary",NOT(R99=1)),"ERROR","")) -> 
B100: 76 | Q100: 0
B101: 77 | Q101: 0
B102: 78 | Q102: 0
B103: 79 | Q103: 0
B104: 80 | Q104: 0
B105: 81 | Q105: =SUM(L105:P105) -> 0
B106: 82 | Q106: =SUM(L106:P106) -> 0
B107: 83 | Q107: 0
B108: 84 | Q108: 0
B109: 85 | Q109: 0
B110: 86 | Q110: 0
B111: 87 | Q111: 0
B112: 88 | Q112: 0
B113: 89 | Q113: 0
B114: 90 | Q114: 0
B115: 91 | Q115: 0
B116: 92 | Q116: 0
B117: 93 | Q117: 0
B118: 94 | Q118: 0
B119: 95 | Q119: 0
B120: 96 | Q120: 0
B121: 97 | Q121: =SUM(L121:P121) -> 0
B122: 98 | Q122: =SUM(L122:P122) -> 0
B123: 99 | Q123: 0
B124: 100 | Q124: 0
B125: 101 | Q125: 0
B126: 102 | Q126: 0
B127: 103 | Q127: 0
B128: 104 | Q128: 0
B129: 105 | Q129: 0
B130: 106 | C130: =IF(AND(NOT(COUNTA(D130:J130)),(NOT(COUNTA(L130:P130)))),"",VLOOKUP($D$9,Info_County_Code,2,FALSE)) ->  | Q130: 0
B131: 107 | Q131: 0
B132: 108 | Q132: 0
B133: 109 | Q133: 0

Sheet Instructions 4. PEI
A1: Use UP or DOWN arrow to navigate spreadsheet.
A2: County: No entry. This field will auto-populate from the Information worksheet.
A3: Date: No entry. This field will auto-populate from the Information worksheet.
A4: Row 1, Column A: Enter the amount of MHSA funds, including interest, expended for PEI Annual Planning.
A5: Row 1, Column B: Enter the amount of Medi-Cal FFP funds expended for PEI Annual Planning.
A6: Row 1, Column C: Enter the amount of 1991 Realignment funds expended for PEI Annual Planning.
A7: Row 1, Column D: Enter the amount of Behavioral Health Subaccount funds expended for PEI Annual Planning.
A8: Row 1, Column E: Enter the amount of Other funds expended for PEI Annual Planning. Other funds include funding from sources not otherwise identified such as from local General Fund or other local sources, or from sources such as Federal grants or other grants.
A9: Row 1, Column F: No entry. This amount is the sum of Row 1, Columns A-E.
A10: Row 2, Column A: Enter the amount of MHSA funds, including interest, expended for PEI Evaluation.
A11: Row 2, Column B: Enter the amount of Medi-Cal FFP funds expended for PEI Evaluation.
A12: Row 2, Column C: Enter the amount of 1991 Realignment funds expended for PEI Evaluation.
A13: Row 2, Column D: Enter the amount of Behavioral Health Subaccount funds expended for PEI Evaluation.
A14: Row 2, Column E: Enter the amount of Other funds expended for PEI Evaluation.
A15: Row 2, Column F: No entry. This amount is the sum of Row 2, Columns A-E.
A16: Row 3, Column A: Enter the amount of MHSA funds, including interest, expended for PEI Administration. This amount should include direct administrative costs and an appropriate allocation of indirect costs. Direct administrative costs are administrative costs that only benefit PEI programs or services. Indirect administrative costs are those administrative costs that are incurred for a common or joint purpose and cannot be readily identified as benefiting only one MHSA component. Counties must use an appropriate allocation method to allocate indirect costs to the PEI Account. The share of costs attributed to the PEI Account should be in proportion to the extent the PEI programs or services benefit from the support activity. Counties must maintain proper documentation of the allocation methodology used to allocate indirect costs to administration of PEI programs or services. To avoid double-counting, do not include costs incurred as both Administration Costs and either Annual Planning Costs, Evaluation Costs or Program Expenditures.
A17: Row 3, Column B: Enter the amount of Medi-Cal FFP funds expended for PEI Administration.
A18: Row 3, Column C: Enter the amount of 1991 Realignment funds expended for PEI Administration.
A19: Row 3, Column D: Enter the amount of Behavioral Health Subaccount funds expended for PEI Administration.
A20: Row 3, Column E: Enter the amount of Other funds expended for PEI Administration.
A21: Row 3, Column F: No entry. This amount is the sum of Row 3, Columns A-E.
A22: Row 4, Column A: Enter the amount of MHSA funds, including interest, expended by CalMHSA on behalf of the County for authorized PEI Statewide Projects during the reporting fiscal year. PEI Statewide Project funding was made available to counties in FY 2008-09 through FY 2011-12. To avoid double counting, funds reported here as expended will not be included in Row 8, Column A. They are reported separately on Worksheet 2. Component Summary, Row 19, Column A.
A23: Row 4, Column B: This cell is blank.
A24: Row 4, Column C: This cell is blank.
A25: Row 4, Column D: This cell is blank.
A26: Row 4, Column E: This cell is blank.
A27: Row 4, Column F: No entry. This amount is equal to Row 4, Column A.
A28: Row 5, Column A: Enter the amount of MHSA funds, including interest, transferred to a Joint Powers Authority (JPA) for PEI programs.
A29: Row 5, Column B: This cell is blank.
A30: Row 5, Column C: This cell is blank.
A31: Row 5, Column D: This cell is blank.
A32: Row 5, Column E: This cell is blank.
A33: Row 5, Column F: No entry. This amount is equal to Row 5, Column A.
A34: Row 6, Column A: Enter the amount of MHSA funds, including interest, expended by a JPA on behalf of the County during the reporting fiscal year for authorized PEI programs. Transfers of MHSA PEI funds made to a JPA for State-Level Projects should not be reflected as PEI Funds Expended by CalMHSA for PEI Statewide (Row 4). Funds reported here as transferred will not increase the Total PEI Expenditures (Row 8).
A35: Row 6, Column B: This cell is blank.
A36: Row 6, Column C: This cell is blank.
A37: Row 6, Column D: This cell is blank.
A38: Row 6, Column E: This cell is blank.
A39: Row 6, Column F: No entry. This amount is equal to Row 6, Column A.
A40: Row 7, Column A: No entry. This amount is equal to the sum of Rows 10-109, Column J
A41: Row 7, Column B: No entry. This amount is equal to the sum of Rows 10-109, Column K.
A42: Row 7, Column C: No entry. This amount is equal to the sum of Rows 10-109, Column L.
A43: Row 7, Column D: No entry. This amount is equal to the sum of Rows 10-109, Column M.
A44: Row 7, Column E: No entry. This amount is equal to the sum of Rows 10-109, Column N.
A45: Row 7, Column F: No entry. This amount is equal to the sum of Row 7, Columns A-E.
A46: Row 8, Column A: No entry. This amount is equal to the sum of Rows 1-3 and 6-7, Column A.
A47: Row 8, Column B: No entry. This amount is equal to the sum of Rows 1-3 and 6-7, Column B.
A48: Row 8, Column C: No entry. This amount is equal to the sum of Rows 1-3 and 6-7, Column C.
A49: Row 8, Column D: No entry. This amount is equal to the sum of Rows 1-3 and 6-7, Column D.
A50: Row 8, Column E: No entry. This amount is equal to the sum of Rows 1-3 and 6-7, Column E.
A51: Row 8, Column F: No entry. This amount is equal to the sum of Row 8, Columns A-E.
A52: Row 9, Column A: No entry. This amount is equal to the sum of Rows 10-109, Column I divided by Row 8, Column A. Per California Code of Regulations (CCR), title 9, section 3706(a), counties are required to serve all ages in one or more PEI programs. Per section 3706(b), counties are required to use at least 51 percent of the Prevention and Early Intervention Fund to serve individuals who are 25 years old or younger. Per section 3760(c), programs that serve parents, caregivers, or family members with the goal of addressing MHSA outcomes for children or youth at risk of or with early onset of a mental illness can be counted as meeting this requirement. A County with population under 200,000 that meets certain conditions may opt out of this requirement (CCR Title 9, Section 3706(d)).
A53: Row 9, Column B: Enter the estimated percentage of funding reported in Row 6, Column A, that were expended in support of clients aged 25 and under.
A54: Rows 10-109, Column A: No entry. This field auto-populates as the County enters expenditure data and is determined according to the County Name entered on Worksheet 1. Information, Row 3. The County Code corresponds to the numeric ID code used to identify the County in the Data Collection and Reporting system.
A55: Rows 10-109, Column B: Enter the Program name for each PEI program funded by the PEI Account. Program name must be consistent with Program Name provided in the most recent MHSA Three-Year Program and Expenditure Plan or Annual Update covering the same Fiscal Year. Each Standalone and Combined Program must have a unique name to ensure the calculation in Column H functions properly. If a County has changed the name of a Program subsequent to publication of the relevant Three-Year Program and Expenditure Plan or Annual Update, the County must provide the name change on worksheet 10. Comments.
A56: Rows 10-109, Column C: If the Program name is identical to the Program name reported in the prior year ARER or this is a new program this reporting year, no entry. If the Program name has changed from what was reported on the prior year ARER, enter the name used to identify this Program in the prior year ARER. If this program represents a combination of two or more programs formerly reported separately, or if this program was formerly combined with another Program, leave this field blank, but provide a comment on the Worksheet 10.
A57: Rows 10-109, Column D: Selection only. Select the program type. Options are Combined or Standalone. If the row data refers to a Program Activity within a Combined Program or to summary information for a Combined Program, select Combined. Otherwise, select Standalone. Counties may combine an Early Intervention Program with a Prevention Program as long as the requirements in CCR, Sections 3710 and 3720 are met.
A58: Rows 10-109, Column E: Selection only. Identify the program type for each program and program activity funded with PEI funds. Options include Early Intervention Program (CCR, Section 3710), Outreach for Increasing Recognition of Early Signs of Mental Illness (CCR Section 3715), Prevention Program (CCR Section 3720), Stigma and Discrimination Reduction Program (CCR Section 3725), Access and Linkage to Treatment Program (CCR Section 3726), Suicide Prevention Programs (CCR Section 3730), Improving Timely Access to Services for Underserved Populations (CCR 3735(a)(2)(A), or Combined Summary (CCR Section 3510.010(a)(1)(A)1.If the County provides for its Outreach for Increasing Recognition of Early Signs of Mental Illness Program through another MHSA component, explain on worksheet 10. Comments.
A59: Rows 10-109, Column F: For Combined Programs, enter the name for each Program Activity row used to report data for the Combined Program. Do not enter data into this cell for Standalone programs and Combined Summary rows.
A60: Rows 10-109, Column G: Enter an estimate of the percentage of MHSA PEI expenditures in a Combined Program dedicated to the selected Program Activity in the Program Type column (Column E). Enter a value between zero and 100. For Programs designated as Standalone in Column D, enter 100. Do not enter data in this column for rows identified as program summary rows. The sum of percentages reported for Program Activities in a Combined Program must equal 100.
A61: Rows 10-109, Column H: Enter an estimate of the percentage of Total MHSA Fund program expenditures (Column J) dedicated to clients age 25 and under. Enter as a value between zero and 100. For Program Activities within a Combined Program, estimate the percentage of the Program Activity expenditures dedicated to serving clients age 25 and under. Leave blank if Column E is selected as Combined Summary.
A62: Rows 10-109, Column I: No entry. The cell auto-populates from data entered in Column G and Column H. This cell displays the weighted average of the percentages reported for each of the Program Activities within the Combined Program. The weighted average is the sum of Columns G and H.
A63: Rows 10-109, Column J: Enter the amount of MHSA PEI component funds, including interest, expended for goods and services delivered during the reporting year for each program. For a Combined Program, enter expenditure data only for the summary row (Program Type “Combined Summary” in Column E).
A64: Rows 10-109, Column K: Enter the amount of Medi-Cal FFP funds expended for goods and services delivered during the reporting year for each program. For a Combined Program, enter expenditure data only for the summary row (Program Type “Combined Summary” in Column E).
A65: Rows 10-109, Column L: Enter the amount of 1991 Realignment funds expended for goods and services delivered during the reporting year for each program. For a Combined Program, enter expenditure data only for the summary row (Program Type “Combined Summary” in Column E).
A66: Rows 10-109, Column M: Enter the amount of Behavioral Health Subaccount funds expended for goods and services delivered during the reporting year for each program. For a Combined Program, enter expenditure data only for the summary row (Program Type “Combined Summary” in Column E).
A67: Rows 10-109, Column N: Enter the amount of Other Funds expended for goods and services delivered during the reporting year for each program. For a Combined Program, enter expenditure data only for the summary row.
A68: Rows 10-109, Column O: No entry. This amount is the sum of Columns J-N. The Column should be blank for program activity rows within a combined program.

Sheet 5. INN
A1: Press UP or DOWN arrow to read through I N N spreadsheet. In section 1, use UP and DOWN arrow for different I N N expenditure types. Use LEFT or RIGHT arrow on these cell rows to input amount of funding type. In section 2, use LEFT or RIGHT arrow to navigate different headers. Use UP and DOWN arrow to input necessary information designated for each column. | B1: STATE OF CALIFORNIA | P1: Department of Health Care Services
B2: HEALTH AND HUMAN SERVICES AGENCY
B4: DHCS 1822 E (02/19)
B5: ='1. Information'!B5 -> Annual Mental Health Services Act (MHSA) Revenue and Expenditure Report
B6: ='1. Information'!B6 -> Fiscal Year: 2020/2021
B7: Innovation (INN) Summary Worksheet
B9: County: | E9: =IF(ISBLANK('1. Information'!D11),"",'1. Information'!D11) -> Kings | G9: Date: | H9: =IF(ISBLANK('1. Information'!D9),"",'1. Information'!D9) -> 2021-12-31
B11: SECTION ONE
F13: A | G13: B | H13: C | I13: D | J13: E | K13: F
F14: Total MHSA Fund (Including Interest) | G14: Medi-Cal FFP | H14: 1991 Realignment | I14: Behavioral Health Subaccount | J14: Other | K14: Grand Total
B15: 1 | C15: INN Annual Planning Costs | F15: 0 | G15: 0 | H15: 0 | I15: 0 | J15: 0 | K15: =SUM(F15:J15) -> 0
B16: 2 | C16: INN Indirect Administration | F16: 0 | G16: 0 | H16: 0 | I16: 0 | J16: 0 | K16: =SUM(F16:J16) -> 0
B17: 3 | C17: INN Funds Transferred to JPA | F17: 0 | K17: =F17 -> 0
B18: 4 | C18: INN Expenditures Incurred by JPA | F18: 0 | K18: =F18 -> 0
B19: 5 | C19: INN Project Administration | F19: =SUMIF($K$29:$K$128,"Project Administration",L$29:L$128) -> 128315 | G19: =SUMIF($K$29:$K$128,"Project Administration",M$29:M$128) -> 0 | H19: =SUMIF($K$29:$K$128,"Project Administration",N$29:N$128) -> 0 | I19: =SUMIF($K$29:$K$128,"Project Administration",O$29:O$128) -> 0 | J19: =SUMIF($K$29:$K$128,"Project Administration",P$29:P$128) -> 0 | K19: =SUM(F19:J19) -> 128315
B20: 6 | C20: INN Project Evaluation | F20: =SUMIF($K$29:$K$128,"Project Evaluation",L$29:L$128) -> 39780 | G20: =SUMIF($K$29:$K$128,"Project Evaluation",M$29:M$128) -> 0 | H20: =SUMIF($K$29:$K$128,"Project Evaluation",N$29:N$128) -> 0 | I20: =SUMIF($K$29:$K$128,"Project Evaluation",O$29:O$128) -> 0 | J20: =SUMIF($K$29:$K$128,"Project Evaluation",P$29:P$128) -> 0 | K20: 39780
B21: 7 | C21: INN Project Direct | F21: =SUMIF($K$29:$K$128,"Project Direct",L$29:L$128) -> 531931 | G21: =SUMIF($K$29:$K$128,"Project Direct",M$29:M$128) -> 0 | H21: =SUMIF($K$29:$K$128,"Project Direct",N$29:N$128) -> 0 | I21: =SUMIF($K$29:$K$128,"Project Direct",O$29:O$128) -> 0 | J21: =SUMIF($K$29:$K$128,"Project Direct",P$29:P$128) -> 0 | K21: 531931
B22: 8 | C22: INN Project Subtotal | F22: =SUM(F19:F21) -> 700026 | G22: =SUM(G19:G21) -> 0 | H22: =SUM(H19:H21) -> 0 | I22: =SUM(I19:I21) -> 0 | J22: =SUM(J19:J21) -> 0 | K22: 700026
B23: 9 | C23: Total Innovation Expenditures (Excluding Transfers to JPA) | F23: =SUM(F15:F16,F18:F21) -> 700026 | G23: =SUM(G15:G16,G19:G21) -> 0 | H23: =SUM(H15:H16,H19:H21) -> 0 | I23: 0 | J23: 0 | K23: 700026
B25: SECTION TWO
D27: A | E27: B | F27: C | G27: D | H27: E | I27: F | J27: G | K27: H | L27: I | M27: J | N27: K | O27: L | P27: M | Q27: N
B28: # | D28: County Code | E28: Project Name | F28: Prior Project Name | G28: Project MHSOAC Approval Date | H28: Project Start Date | I28: MHSOAC-Authorized MHSA INN Project Budget | J28: Amended MHSOAC-Authorized MHSA INN Project Budget | K28: Project Expenditure Type | L28: Total MHSA Funds (Including Interest) | M28: Medi-Cal FFP | N28: 1991 Realignment | O28: Behavioral Health Subaccount | P28: Other | Q28: Grand Total
B29: 10 | C29: A | D29: =IF(Q32<>0,VLOOKUP($E$9,Info_County_Code,2,FALSE),"") -> 16 | E29: M.O.S.T. | K29: Project Administration | L29: =128315 -> 128315 | Q29: =SUM(L29:P29) -> 128315
B30: 10 | C30: B | D30: =IF(ISBLANK(D29),"",D29) -> 16 | E30: M.O.S.T. | K30: Project Evaluation | L30: 39780 | Q30: =SUM(L30:P30) -> 39780
B31: 10 | C31: C | D31: =IF(ISBLANK(D29),"",D29) -> 16 | E31: M.O.S.T. | K31: Project Direct | L31: =264833+306878-39780 -> 531931 | Q31: 531931
B32: 10 | C32: D | D32: =IF(ISBLANK(D29),"",D29) -> 16 | E32: M.O.S.T. | K32: Project Subtotal | L32: =SUM(L29:L31) -> 700026 | M32: =SUM(M29:M31) -> 0 | N32: =SUM(N29:N31) -> 0 | O32: 0 | P32: 0 | Q32: 700026
B33: 11 | C33: A | D33: =IF(Q36<>0,VLOOKUP($E$9,Info_County_Code,2,FALSE),"") ->  | K33: =IF(NOT(ISBLANK(E33)),$K$29,"") ->  | Q33: =SUM(L33:P33) -> 0
B34: 11 | C34: B | D34: =IF(ISBLANK(D33),"",D33) ->  | K34: =IF(NOT(ISBLANK(E33)),$K$30,"") ->  | Q34: 0
B35: 11 | C35: C | D35: =IF(ISBLANK(D33),"",D33) ->  | K35: =IF(NOT(ISBLANK(E33)),$K$31,"") ->  | Q35: 0
B36: 11 | C36: D | D36: =IF(ISBLANK(D33),"",D33) ->  | K36: =IF(NOT(ISBLANK(E33)),$K$32,"") ->  | L36: =SUM(L33:L35) -> 0 | M36: =SUM(M33:M35) -> 0 | N36: =SUM(N33:N35) -> 0 | O36: 0 | P36: 0 | Q36: 0
B37: 12 | C37: A | D37: =IF(Q40<>0,VLOOKUP($E$9,Info_County_Code,2,FALSE),"") ->  | K37: =IF(NOT(ISBLANK(E37)),$K$29,"") ->  | Q37: 0
B38: 12 | C38: B | D38: =IF(ISBLANK(D37),"",D37) ->  | K38: =IF(NOT(ISBLANK(E37)),$K$30,"") ->  | Q38: 0
B39: 12 | C39: C | D39: =IF(ISBLANK(D37),"",D37) ->  | K39: =IF(NOT(ISBLANK(E37)),$K$31,"") ->  | Q39: 0
B40: 12 | C40: D | D40: =IF(ISBLANK(D37),"",D37) ->  | K40: =IF(NOT(ISBLANK(E37)),$K$32,"") ->  | L40: =SUM(L37:L39) -> 0 | M40: =SUM(M37:M39) -> 0 | N40: =SUM(N37:N39) -> 0 | O40: =SUM(O37:O39) -> 0 | P40: =SUM(P37:P39) -> 0 | Q40: 0
B41: 13 | C41: A | D41: =IF(Q44<>0,VLOOKUP($E$9,Info_County_Code,2,FALSE),"") ->  | K41: =IF(NOT(ISBLANK(E41)),$K$29,"") ->  | Q41: 0
B42: 13 | C42: B | D42: =IF(ISBLANK(D41),"",D41) ->  | K42: =IF(NOT(ISBLANK(E41)),$K$30,"") ->  | Q42: 0
B43: 13 | C43: C | D43: =IF(ISBLANK(D41),"",D41) ->  | K43: =IF(NOT(ISBLANK(E41)),$K$31,"") ->  | Q43: 0
B44: 13 | C44: D | D44: =IF(ISBLANK(D41),"",D41) ->  | K44: =IF(NOT(ISBLANK(E41)),$K$32,"") ->  | L44: =SUM(L41:L43) -> 0 | M44: =SUM(M41:M43) -> 0 | N44: =SUM(N41:N43) -> 0 | O44: =SUM(O41:O43) -> 0 | P44: =SUM(P41:P43) -> 0 | Q44: 0
B45: 14 | C45: A | D45: =IF(Q48<>0,VLOOKUP($E$9,Info_County_Code,2,FALSE),"") ->  | K45: =IF(NOT(ISBLANK(E45)),$K$29,"") ->  | Q45: 0
B46: 14 | C46: B | D46: =IF(ISBLANK(D45),"",D45) ->  | K46: =IF(NOT(ISBLANK(E45)),$K$30,"") ->  | Q46: 0
B47: 14 | C47: C | D47: =IF(ISBLANK(D45),"",D45) ->  | K47: =IF(NOT(ISBLANK(E45)),$K$31,"") ->  | Q47: 0
B48: 14 | C48: D | D48: =IF(ISBLANK(D45),"",D45) ->  | K48: =IF(NOT(ISBLANK(E45)),$K$32,"") ->  | L48: =SUM(L45:L47) -> 0 | M48: =SUM(M45:M47) -> 0 | N48: =SUM(N45:N47) -> 0 | O48: =SUM(O45:O47) -> 0 | P48: =SUM(P45:P47) -> 0 | Q48: 0
B49: 15 | C49: A | D49: =IF(Q52<>0,VLOOKUP($E$9,Info_County_Code,2,FALSE),"") ->  | K49: =IF(NOT(ISBLANK(E49)),$K$29,"") ->  | Q49: 0
B50: 15 | C50: B | D50: =IF(ISBLANK(D49),"",D49) ->  | K50: =IF(NOT(ISBLANK(E49)),$K$30,"") ->  | Q50: 0
B51: 15 | C51: C | D51: =IF(ISBLANK(D49),"",D49) ->  | K51: =IF(NOT(ISBLANK(E49)),$K$31,"") ->  | Q51: 0
B52: 15 | C52: D | D52: =IF(ISBLANK(D49),"",D49) ->  | K52: =IF(NOT(ISBLANK(E49)),$K$32,"") ->  | L52: =SUM(L49:L51) -> 0 | M52: =SUM(M49:M51) -> 0 | N52: =SUM(N49:N51) -> 0 | O52: =SUM(O49:O51) -> 0 | P52: =SUM(P49:P51) -> 0 | Q52: 0
B53: 16 | C53: A | D53: =IF(Q56<>0,VLOOKUP($E$9,Info_County_Code,2,FALSE),"") ->  | K53: =IF(NOT(ISBLANK(E53)),$K$29,"") ->  | Q53: 0
B54: 16 | C54: B | D54: =IF(ISBLANK(D53),"",D53) ->  | K54: =IF(NOT(ISBLANK(E53)),$K$30,"") ->  | Q54: 0
B55: 16 | C55: C | D55: =IF(ISBLANK(D53),"",D53) ->  | K55: =IF(NOT(ISBLANK(E53)),$K$31,"") ->  | Q55: 0
B56: 16 | C56: D | D56: =IF(ISBLANK(D53),"",D53) ->  | K56: =IF(NOT(ISBLANK(E53)),$K$32,"") ->  | L56: =SUM(L53:L55) -> 0 | M56: =SUM(M53:M55) -> 0 | N56: =SUM(N53:N55) -> 0 | O56: =SUM(O53:O55) -> 0 | P56: =SUM(P53:P55) -> 0 | Q56: 0
B57: 17 | C57: A | D57: =IF(Q60<>0,VLOOKUP($E$9,Info_County_Code,2,FALSE),"") ->  | K57: =IF(NOT(ISBLANK(E57)),$K$29,"") ->  | Q57: 0
B58: 17 | C58: B | D58: =IF(ISBLANK(D57),"",D57) ->  | K58: =IF(NOT(ISBLANK(E57)),$K$30,"") ->  | Q58: 0
B59: 17 | C59: C | D59: =IF(ISBLANK(D57),"",D57) ->  | K59: =IF(NOT(ISBLANK(E57)),$K$31,"") ->  | Q59: 0
B60: 17 | C60: D | D60: =IF(ISBLANK(D57),"",D57) ->  | K60: =IF(NOT(ISBLANK(E57)),$K$32,"") ->  | L60: =SUM(L57:L59) -> 0 | M60: =SUM(M57:M59) -> 0 | N60: =SUM(N57:N59) -> 0 | O60: =SUM(O57:O59) -> 0 | P60: =SUM(P57:P59) -> 0 | Q60: 0
B61: 18 | C61: A | D61: =IF(Q64<>0,VLOOKUP($E$9,Info_County_Code,2,FALSE),"") ->  | K61: =IF(NOT(ISBLANK(E61)),$K$29,"") ->  | Q61: =SUM(L61:P61) -> 0
B62: 18 | C62: B | D62: =IF(ISBLANK(D61),"",D61) ->  | K62: =IF(NOT(ISBLANK(E61)),$K$30,"") ->  | Q62: 0
B63: 18 | C63: C | D63: =IF(ISBLANK(D61),"",D61) ->  | K63: =IF(NOT(ISBLANK(E61)),$K$31,"") ->  | Q63: 0
B64: 18 | C64: D | D64: =IF(ISBLANK(D61),"",D61) ->  | K64: =IF(NOT(ISBLANK(E61)),$K$32,"") ->  | L64: =SUM(L61:L63) -> 0 | M64: =SUM(M61:M63) -> 0 | N64: =SUM(N61:N63) -> 0 | O64: =SUM(O61:O63) -> 0 | P64: =SUM(P61:P63) -> 0 | Q64: 0
B65: 19 | C65: A | D65: =IF(Q68<>0,VLOOKUP($E$9,Info_County_Code,2,FALSE),"") ->  | K65: =IF(NOT(ISBLANK(E65)),$K$29,"") ->  | Q65: 0
B66: 19 | C66: B | D66: =IF(ISBLANK(D65),"",D65) ->  | K66: =IF(NOT(ISBLANK(E65)),$K$30,"") ->  | Q66: 0
B67: 19 | C67: C | D67: =IF(ISBLANK(D65),"",D65) ->  | K67: =IF(NOT(ISBLANK(E65)),$K$31,"") ->  | Q67: 0
B68: 19 | C68: D | D68: =IF(ISBLANK(D65),"",D65) ->  | K68: =IF(NOT(ISBLANK(E65)),$K$32,"") ->  | L68: =SUM(L65:L67) -> 0 | M68: =SUM(M65:M67) -> 0 | N68: =SUM(N65:N67) -> 0 | O68: =SUM(O65:O67) -> 0 | P68: =SUM(P65:P67) -> 0 | Q68: 0
B69: 20 | C69: A | D69: =IF(Q72<>0,VLOOKUP($E$9,Info_County_Code,2,FALSE),"") ->  | K69: =IF(NOT(ISBLANK(E69)),$K$29,"") ->  | Q69: 0
B70: 20 | C70: B | D70: =IF(ISBLANK(D69),"",D69) ->  | K70: =IF(NOT(ISBLANK(E69)),$K$30,"") ->  | Q70: 0
B71: 20 | C71: C | D71: =IF(ISBLANK(D69),"",D69) ->  | K71: =IF(NOT(ISBLANK(E69)),$K$31,"") ->  | Q71: 0
B72: 20 | C72: D | D72: =IF(ISBLANK(D69),"",D69) ->  | K72: =IF(NOT(ISBLANK(E69)),$K$32,"") ->  | L72: =SUM(L69:L71) -> 0 | M72: =SUM(M69:M71) -> 0 | N72: =SUM(N69:N71) -> 0 | O72: =SUM(O69:O71) -> 0 | P72: =SUM(P69:P71) -> 0 | Q72: 0
B73: 21 | C73: A | D73: =IF(Q76<>0,VLOOKUP($E$9,Info_County_Code,2,FALSE),"") ->  | K73: =IF(NOT(ISBLANK(E73)),$K$29,"") ->  | Q73: 0
B74: 21 | C74: B | D74: =IF(ISBLANK(D73),"",D73) ->  | K74: =IF(NOT(ISBLANK(E73)),$K$30,"") ->  | Q74: 0
B75: 21 | C75: C | D75: =IF(ISBLANK(D73),"",D73) ->  | K75: =IF(NOT(ISBLANK(E73)),$K$31,"") ->  | Q75: 0
B76: 21 | C76: D | D76: =IF(ISBLANK(D73),"",D73) ->  | K76: =IF(NOT(ISBLANK(E73)),$K$32,"") ->  | L76: =SUM(L73:L75) -> 0 | M76: =SUM(M73:M75) -> 0 | N76: =SUM(N73:N75) -> 0 | O76: =SUM(O73:O75) -> 0 | P76: =SUM(P73:P75) -> 0 | Q76: 0
B77: 22 | C77: A | D77: =IF(Q80<>0,VLOOKUP($E$9,Info_County_Code,2,FALSE),"") ->  | K77: =IF(NOT(ISBLANK(E77)),$K$29,"") ->  | Q77: 0
B78: 22 | C78: B | D78: =IF(ISBLANK(D77),"",D77) ->  | K78: =IF(NOT(ISBLANK(E77)),$K$30,"") ->  | Q78: 0
B79: 22 | C79: C | D79: =IF(ISBLANK(D77),"",D77) ->  | K79: =IF(NOT(ISBLANK(E77)),$K$31,"") ->  | Q79: 0
B80: 22 | C80: D | D80: =IF(ISBLANK(D77),"",D77) ->  | K80: =IF(NOT(ISBLANK(E77)),$K$32,"") ->  | L80: =SUM(L77:L79) -> 0 | M80: =SUM(M77:M79) -> 0 | N80: =SUM(N77:N79) -> 0 | O80: =SUM(O77:O79) -> 0 | P80: =SUM(P77:P79) -> 0 | Q80: 0
B81: 23 | C81: A | D81: =IF(Q84<>0,VLOOKUP($E$9,Info_County_Code,2,FALSE),"") ->  | K81: =IF(NOT(ISBLANK(E81)),$K$29,"") ->  | Q81: 0
B82: 23 | C82: B | D82: =IF(ISBLANK(D81),"",D81) ->  | K82: =IF(NOT(ISBLANK(E81)),$K$30,"") ->  | Q82: 0
B83: 23 | C83: C | D83: =IF(ISBLANK(D81),"",D81) ->  | K83: =IF(NOT(ISBLANK(E81)),$K$31,"") ->  | Q83: 0
B84: 23 | C84: D | D84: =IF(ISBLANK(D81),"",D81) ->  | K84: =IF(NOT(ISBLANK(E81)),$K$32,"") ->  | L84: =SUM(L81:L83) -> 0 | M84: =SUM(M81:M83) -> 0 | N84: =SUM(N81:N83) -> 0 | O84: =SUM(O81:O83) -> 0 | P84: =SUM(P81:P83) -> 0 | Q84: 0
B85: 24 | C85: A | D85: =IF(Q88<>0,VLOOKUP($E$9,Info_County_Code,2,FALSE),"") ->  | K85: =IF(NOT(ISBLANK(E85)),$K$29,"") ->  | Q85: =SUM(L85:P85) -> 0
B86: 24 | C86: B | D86: =IF(ISBLANK(D85),"",D85) ->  | K86: =IF(NOT(ISBLANK(E85)),$K$30,"") ->  | Q86: 0
B87: 24 | C87: C | D87: =IF(ISBLANK(D85),"",D85) ->  | K87: =IF(NOT(ISBLANK(E85)),$K$31,"") ->  | Q87: 0
B88: 24 | C88: D | D88: =IF(ISBLANK(D85),"",D85) ->  | K88: =IF(NOT(ISBLANK(E85)),$K$32,"") ->  | L88: =SUM(L85:L87) -> 0 | M88: =SUM(M85:M87) -> 0 | N88: =SUM(N85:N87) -> 0 | O88: 0 | P88: 0 | Q88: 0
B89: 25 | C89: A | D89: =IF(Q92<>0,VLOOKUP($E$9,Info_County_Code,2,FALSE),"") ->  | K89: =IF(NOT(ISBLANK(E89)),$K$29,"") ->  | Q89: 0
B90: 25 | C90: B | D90: =IF(ISBLANK(D89),"",D89) ->  | K90: =IF(NOT(ISBLANK(E89)),$K$30,"") ->  | Q90: 0
B91: 25 | C91: C | D91: =IF(ISBLANK(D89),"",D89) ->  | K91: =IF(NOT(ISBLANK(E89)),$K$31,"") ->  | Q91: 0
B92: 25 | C92: D | D92: =IF(ISBLANK(D89),"",D89) ->  | K92: =IF(NOT(ISBLANK(E89)),$K$32,"") ->  | L92: =SUM(L89:L91) -> 0 | M92: =SUM(M89:M91) -> 0 | N92: =SUM(N89:N91) -> 0 | O92: 0 | P92: 0 | Q92: 0
B93: 26 | C93: A | D93: =IF(Q96<>0,VLOOKUP($E$9,Info_County_Code,2,FALSE),"") ->  | K93: =IF(NOT(ISBLANK(E93)),$K$29,"") ->  | Q93: 0
B94: 26 | C94: B | D94: =IF(ISBLANK(D93),"",D93) ->  | K94: =IF(NOT(ISBLANK(E93)),$K$30,"") ->  | Q94: 0
B95: 26 | C95: C | D95: =IF(ISBLANK(D93),"",D93) ->  | K95: =IF(NOT(ISBLANK(E93)),$K$31,"") ->  | Q95: 0
B96: 26 | C96: D | D96: =IF(ISBLANK(D93),"",D93) ->  | K96: =IF(NOT(ISBLANK(E93)),$K$32,"") ->  | L96: =SUM(L93:L95) -> 0 | M96: =SUM(M93:M95) -> 0 | N96: =SUM(N93:N95) -> 0 | O96: 0 | P96: 0 | Q96: 0
B97: 27 | C97: A | D97: =IF(Q100<>0,VLOOKUP($E$9,Info_County_Code,2,FALSE),"") ->  | K97: =IF(NOT(ISBLANK(E97)),$K$29,"") ->  | Q97: =SUM(L97:P97) -> 0
B98: 27 | C98: B | D98: =IF(ISBLANK(D97),"",D97) ->  | K98: =IF(NOT(ISBLANK(E97)),$K$30,"") ->  | Q98: 0
B99: 27 | C99: C | D99: =IF(ISBLANK(D97),"",D97) ->  | K99: =IF(NOT(ISBLANK(E97)),$K$31,"") ->  | Q99: 0
B100: 27 | C100: D | D100: =IF(ISBLANK(D97),"",D97) ->  | K100: =IF(NOT(ISBLANK(E97)),$K$32,"") ->  | L100: =SUM(L97:L99) -> 0 | M100: =SUM(M97:M99) -> 0 | N100: =SUM(N97:N99) -> 0 | O100: 0 | P100: 0 | Q100: 0
B101: 28 | C101: A | D101: =IF(Q104<>0,VLOOKUP($E$9,Info_County_Code,2,FALSE),"") ->  | K101: =IF(NOT(ISBLANK(E101)),$K$29,"") ->  | Q101: 0
B102: 28 | C102: B | D102: =IF(ISBLANK(D101),"",D101) ->  | K102: =IF(NOT(ISBLANK(E101)),$K$30,"") ->  | Q102: 0
B103: 28 | C103: C | D103: =IF(ISBLANK(D101),"",D101) ->  | K103: =IF(NOT(ISBLANK(E101)),$K$31,"") ->  | Q103: 0
B104: 28 | C104: D | D104: =IF(ISBLANK(D101),"",D101) ->  | K104: =IF(NOT(ISBLANK(E101)),$K$32,"") ->  | L104: =SUM(L101:L103) -> 0 | M104: =SUM(M101:M103) -> 0 | N104: =SUM(N101:N103) -> 0 | O104: 0 | P104: 0 | Q104: 0
B105: 29 | C105: A | D105: =IF(Q108<>0,VLOOKUP($E$9,Info_County_Code,2,FALSE),"") ->  | K105: =IF(NOT(ISBLANK(E105)),$K$29,"") ->  | Q105: =SUM(L105:P105) -> 0
B106: 29 | C106: B | D106: =IF(ISBLANK(D105),"",D105) ->  | K106: =IF(NOT(ISBLANK(E105)),$K$30,"") ->  | Q106: 0
B107: 29 | C107: C | D107: =IF(ISBLANK(D105),"",D105) ->  | K107: =IF(NOT(ISBLANK(E105)),$K$31,"") ->  | Q107: 0
B108: 29 | C108: D | D108: =IF(ISBLANK(D105),"",D105) ->  | K108: =IF(NOT(ISBLANK(E105)),$K$32,"") ->  | L108: =SUM(L105:L107) -> 0 | M108: =SUM(M105:M107) -> 0 | N108: =SUM(N105:N107) -> 0 | O108: 0 | P108: 0 | Q108: 0
B109: 30 | C109: A | D109: =IF(Q112<>0,VLOOKUP($E$9,Info_County_Code,2,FALSE),"") ->  | K109: =IF(NOT(ISBLANK(E109)),$K$29,"") ->  | Q109: 0
B110: 30 | C110: B | D110: =IF(ISBLANK(D109),"",D109) ->  | K110: =IF(NOT(ISBLANK(E109)),$K$30,"") ->  | Q110: 0
B111: 30 | C111: C | D111: =IF(ISBLANK(D109),"",D109) ->  | K111: =IF(NOT(ISBLANK(E109)),$K$31,"") ->  | Q111: 0
B112: 30 | C112: D | D112: =IF(ISBLANK(D109),"",D109) ->  | K112: =IF(NOT(ISBLANK(E109)),$K$32,"") ->  | L112: =SUM(L109:L111) -> 0 | M112: =SUM(M109:M111) -> 0 | N112: =SUM(N109:N111) -> 0 | O112: 0 | P112: 0 | Q112: 0
B113: 31 | C113: A | D113: =IF(Q116<>0,VLOOKUP($E$9,Info_County_Code,2,FALSE),"") ->  | K113: =IF(NOT(ISBLANK(E113)),$K$29,"") ->  | Q113: =SUM(L113:P113) -> 0
B114: 31 | C114: B | D114: =IF(ISBLANK(D113),"",D113) ->  | K114: =IF(NOT(ISBLANK(E113)),$K$30,"") ->  | Q114: 0
B115: 31 | C115: C | D115: =IF(ISBLANK(D113),"",D113) ->  | K115: =IF(NOT(ISBLANK(E113)),$K$31,"") ->  | Q115: 0
B116: 31 | C116: D | D116: =IF(ISBLANK(D113),"",D113) ->  | K116: =IF(NOT(ISBLANK(E113)),$K$32,"") ->  | L116: =SUM(L113:L115) -> 0 | M116: =SUM(M113:M115) -> 0 | N116: =SUM(N113:N115) -> 0 | O116: 0 | P116: 0 | Q116: 0
B117: 32 | C117: A | D117: =IF(Q120<>0,VLOOKUP($E$9,Info_County_Code,2,FALSE),"") ->  | K117: =IF(NOT(ISBLANK(E117)),$K$29,"") ->  | Q117: 0
B118: 32 | C118: B | D118: =IF(ISBLANK(D117),"",D117) ->  | K118: =IF(NOT(ISBLANK(E117)),$K$30,"") ->  | Q118: 0
B119: 32 | C119: C | D119: =IF(ISBLANK(D117),"",D117) ->  | K119: =IF(NOT(ISBLANK(E117)),$K$31,"") ->  | Q119: 0
B120: 32 | C120: D | D120: =IF(ISBLANK(D117),"",D117) ->  | K120: =IF(NOT(ISBLANK(E117)),$K$32,"") ->  | L120: =SUM(L117:L119) -> 0 | M120: =SUM(M117:M119) -> 0 | N120: =SUM(N117:N119) -> 0 | O120: 0 | P120: 0 | Q120: 0
B121: 33 | C121: A | D121: =IF(Q124<>0,VLOOKUP($E$9,Info_County_Code,2,FALSE),"") ->  | K121: =IF(NOT(ISBLANK(E121)),$K$29,"") ->  | Q121: =SUM(L121:P121) -> 0
B122: 33 | C122: B | D122: =IF(ISBLANK(D121),"",D121) ->  | K122: =IF(NOT(ISBLANK(E121)),$K$30,"") ->  | Q122: 0
B123: 33 | C123: C | D123: =IF(ISBLANK(D121),"",D121) ->  | K123: =IF(NOT(ISBLANK(E121)),$K$31,"") ->  | Q123: 0
B124: 33 | C124: D | D124: =IF(ISBLANK(D121),"",D121) ->  | K124: =IF(NOT(ISBLANK(E121)),$K$32,"") ->  | L124: =SUM(L121:L123) -> 0 | M124: =SUM(M121:M123) -> 0 | N124: =SUM(N121:N123) -> 0 | O124: 0 | P124: 0 | Q124: 0
B125: 34 | C125: A | D125: =IF(Q128<>0,VLOOKUP($E$9,Info_County_Code,2,FALSE),"") ->  | K125: =IF(NOT(ISBLANK(E125)),$K$29,"") ->  | Q125: 0
B126: 34 | C126: B | D126: =IF(ISBLANK(D125),"",D125) ->  | K126: =IF(NOT(ISBLANK(E125)),$K$30,"") ->  | Q126: 0
B127: 34 | C127: C | D127: =IF(ISBLANK(D125),"",D125) ->  | K127: =IF(NOT(ISBLANK(E125)),$K$31,"") ->  | Q127: 0
B128: 34 | C128: D | D128: =IF(ISBLANK(D125),"",D125) ->  | K128: =IF(NOT(ISBLANK(E125)),$K$32,"") ->  | L128: =SUM(L125:L127) -> 0 | M128: =SUM(M125:M127) -> 0 | N128: =SUM(N125:N127) -> 0 | O128: 0 | P128: 0 | Q128: 0

Sheet Instructions 5. INN
A1: Use UP or DOWN arrow to navigate spreadsheet.
A2: County: No entry. This field will auto-populate from the Information worksheet.
A3: Date: No entry. This field will auto-populate from the Information worksheet.
A4: Row 1, Column A: Enter the amount of MHSA funds, including interest, expended for INN Annual Planning.
A5: Row 1, Column B: Enter the amount of Medi-Cal FFP funds expended for INN Annual Planning.
A6: Row 1, Column C: Enter the amount of 1991 Realignment funds expended for INN Annual Planning.
A7: Row 1, Column D: Enter the amount of Behavioral Health Subaccount funds expended for INN Annual Planning.
A8: Row 1, Column E: Enter the amount of Other funds expended for INN Annual Planning. Other funds include funding from sources not otherwise identified such as from local General Fund or other local sources, or from sources such as Federal grants or other grants.
A9: Row 1, Column F: No entry. This amount is the sum of Row 1, Columns A-E.
A10: Row 2, Column A: Enter the amount of MHSA funds, including interest, expended for INN Indirect Administration costs. Indirect administrative costs are those administrative costs that are incurred for a common or joint purpose and cannot be readily identified as benefiting only one MHSA component. Counties must use an appropriate allocation method to allocate indirect costs to the INN Account. The share of costs attributed to the INN Account should be in proportion to the extent the INN projects or services benefit from the support activity. Counties must maintain proper documentation of the allocation methodology used to allocate indirect costs to administration of INN projects or services. To avoid double-counting, do not include costs incurred as both INN Indirect Administration Costs and either INN Project Administration, INN Project Evaluation or INN Project Direct Expenditures.
A11: Row 2, Column B: Enter the amount of Medi-Cal FFP funds expended for INN Indirect Administration.
A12: Row 2, Column C: Enter the amount of 1991 Realignment funds expended for INN Indirect Administration.
A13: Row 2, Column D: Enter the amount of Behavioral Health subaccount funds expended for INN Indirect Administration.
A14: Row 2, Column E: Enter the amount of Other funds expended for INN Indirect Administration.
A15: Row 2, Column F: No entry. This amount is the sum of Row 2, Columns A-E.
A16: Row 3, Column A: Enter the amount of MHSA funds, including interest, transferred to a Joint Powers Authority (JPA) for INN projects.
A17: Row 3, Column B: This cell is blank.
A18: Row 3, Column C: This cell is blank.
A19: Row 3, Column D: This cell is blank.
A20: Row 3, Column E: This cell is blank.
A21: Row 3, Column F: No entry. This amount is equal to Row 3, Column A.
A22: Row 4, Column A: Enter the amount of MHSA funds, including interest, expended by a JPA on behalf of the County during the reporting fiscal year for authorized INN projects. Funds reported here as transferred will not increase the Total INN Expenditures (Row 9).
A23: Row 4, Column B: This cell is blank.
A24: Row 4, Column C: This cell is blank.
A25: Row 4, Column D: This cell is blank.
A26: Row 4, Column E: This cell is blank.
A27: Row 4, Column F: No entry. This amount is equal to Row 4, Column A.
A28: Row 5, Column A: No entry. This amount is equal to the sum of Rows 10-34, Column I identified as Project Administration in Column H.
A29: Row 5, Column B: No entry. This amount is equal to the sum of Rows 10-34, Column J identified as Project Administration in Column H.
A30: Row 5, Column C: No entry. This amount is equal to the sum of Rows 10-34, Column K identified as Project Administration in Column H.
A31: Row 5, Column D: No entry. This amount is equal to the sum of Rows 10-34, Column L identified as Project Administration in Column H.
A32: Row 5, Column E: No entry. This amount is equal to the sum of Rows 10-34, Column M identified as Project Administration in Column H.
A33: Row 5, Column F: No entry. This amount is equal to the sum of Row 5, Columns A-E.
A34: Row 6, Column A: No entry. This amount is equal to the sum of Rows 10-34, Column I identified as Project Evaluation in Column H.
A35: Row 6, Column B: No entry. This amount is equal to the sum of Rows 10-34, Column J identified as Project Evaluation in Column H.
A36: Row 6, Column C: No entry. This amount is equal to the sum of Rows 10-34, Column K identified as Project Evaluation in Column H.
A37: Row 6, Column D: No entry. This amount is equal to the sum of Rows 10-34, Column L identified as Project Evaluation in Column H.
A38: Row 6, Column E: No entry. This amount is equal to the sum of Rows 10-34, Column M identified as Project Evaluation in Column H.
A39: Row 6, Column F: No entry. This amount is equal to the sum of Row 6, Columns A-E.
A40: Row 7, Column A: No entry. This amount is equal to the sum of Rows 10-34, Column I identified as Project Direct in Column H.
A41: Row 7, Column B: No entry. This amount is equal to the sum of Rows 10-34, Column J identified as Project Direct in Column H.
A42: Row 7, Column C: No entry. This amount is equal to the sum of Rows 10-34, Column K identified as Project Direct in Column H.
A43: Row 7, Column D: No entry. This amount is equal to the sum of Rows 10-34, Column L identified as Project Direct in Column H.
A44: Row 7, Column E: No entry. This amount is equal to the sum of Rows 10-34, Column M identified as Project Direct in Column H.
A45: Row 7, Column F: No entry. This amount is equal to the sum of Rows 7, Columns A-E.
A46: Row 8, Column A: No entry. This amount is equal to the sum of Rows 5-7, Column A.
A47: Row 8, Column B: No entry. This amount is equal to the sum of Rows 5-7, Column B.
A48: Row 8, Column C: No entry. This amount is equal to the sum of Rows 5-7, Column C.
A49: Row 8, Column D: No entry. This amount is equal to the sum of Rows 5-7, Column D.
A50: Row 8, Column E: No entry. This amount is equal to the sum of Rows 5-7, Column E.
A51: Row 8, Column F: No entry. This amount is equal to the sum of Row 8, Columns A-E.
A52: Row 9, Column A: No entry. This amount is equal to the sum of Rows 1-2 and 4-7, Column A.
A53: Row 9, Column B: No entry. This amount is equal to the sum of Rows 1-2 and 5-7, Column B.
A54: Row 9, Column C: No entry. This amount is equal to the sum of Rows 1-2 and 5-7, Column C.
A55: Row 9, Column D: No entry. This amount is equal to the sum of Rows 1-2 and 5-7, Column D.
A56: Row 9, Column E: No entry. This amount is equal to the sum of Rows 1-2 and 5-7, Column E.
A57: Row 9, Column F: No entry. This amount is equal to the sum of Row 9, Columns A-E.
A58: Rows10A-34A, Column A: No entry. This field auto-populates as the County enters expenditure data and is determined according to the County Name entered on Worksheet 1. Information, Row 3. The County Code corresponds to the numeric ID code used to identify the County in the Data Collection and Reporting system.
A59: Rows 10A-34A, Column B: Enter the Program name for each INN project funded by the INN Account. Project name must be consistent with Project Name provided in the most recent MHSA Three-Year Program and Expenditure Plan or Annual Update covering the same Fiscal Year. If a County has changed the name of a Project subsequent to publication of the relevant Three-Year Program and Expenditure Plan or Annual Update, the County must provide the name change on worksheet 10. Comments.
A60: Rows 10A-34A, Column C: If the Project name is identical to the Project name reported in the prior year ARER or this is a new program this reporting year, no entry. If the Project name has changed from what was reported on the prior year ARER, enter the name used to identify this Project in the prior year ARER. If this Project represents a combination of two or more Projects formerly reported separately, or if this Project was formerly combined with another Project leave this field blank, but provide a comment on the Worksheet 10.
A61: Rows 10A-34A, Column D: Enter in the date of the MHSOAC meeting in which the MHSOAC initially approved the Project.
A62: Rows 10A-34A, Column E: Enter in the start date for the Project. The start date is the date on which the County began implementing the project. INN projects are time-limited projects that can extend a maximum of five years from their respective Start Date. (California Code of Regulations, Title 9, Section 3910.010(a))
A63: Rows 10A-34A, Column F: Enter the amount of MHSA INN funding the MHSOAC initially authorized for the Project on the date entered in Column E. Provide a comment in Worksheet 10. Comments explaining the amount authorized, including any specific MHSA INN allocations designed for expenditure in the approved project.
A64: Rows 10A-34A, Column G: If the Project has not been amended, no entry. Otherwise, enter the additional amount of MHSA INN funding authorized by the MHSOAC for the Project through an amendment. The sum of Column F and Column G should equal the total amount the MHSOAC authorized for the Project through the amendment. Provide a comment in Worksheet 10. Comments explaining the additional amount authorized, including any specific MHSA INN allocations designed for expenditure in the approved project.
A65: Rows 10A-34A, Column H: No entry.
A66: Rows 10A-34A, Column I: Enter the amount of MHSA funds, including interest, expended for goods and services delivered during the reporting fiscal year for each Project, for Project Administration.
A67: Rows 10A-34A, Column J: Enter the amount of Medi-Cal FFP funds expended for goods and services delivered during the reporting fiscal year for each Project, for Project Administration.
A68: Rows 10A-34A, Column K: Enter the amount of 1991 Realignment funds expended for goods and services delivered during the reporting fiscal year for each Project, for Project Administration.
A69: Rows 10A-34A, Column L: Enter the amount of Behavioral Health Subaccount funds expended for goods and services delivered during the reporting fiscal year for each Project, for Project Administration.
A70: Rows 10A-34A, Column M: Enter the amount of Other funds expended for goods and services delivered during the reporting fiscal year for each Project, for Project Administration.
A71: Rows 10A-34A, Column N: No entry. This amount is the sum of Rows 10A-34A, Columns I-M.
A72: Rows10B-34B, Column A: No entry. This field auto-populates as the County enters expenditure data and is determined according to the County Name entered on Worksheet 1. Information, Row 3. The County Code corresponds to the numeric ID code used to identify the County in the Data Collection and Reporting system.
A73: Rows 10B-34B, Column B: No entry. This data autopopulates from Rows 10A-34A, Column B.
A74: Rows 10B-34B, Column C: No entry. This data autopopulates from Rows 10A-34A, Column C.
A75: Rows 10B-34B, Column D: No entry. This data autopopulates from Rows 10A-34A, Column D.
A76: Rows 10B-34B, Column E: No entry. This data autopopulates from Rows 10A-34A, Column E.
A77: Rows 10B-34B, Column F: No entry. This data autopopulates from Rows 10A-34A, Column F.
A78: Rows 10B-34B, Column G: No entry. This data autopopulates from Rows 10A-34A, Column G.
A79: Rows 10B-34B, Column H: No entry.
A80: Rows 10B-34B, Column I: Enter the amount of MHSA funds, including interest, expended for goods and services delivered during the reporting fiscal year for each Project, for Project Evaluation.
A81: Rows 10B-34B, Column J: Enter the amount of Medi-Cal FFP funds expended for goods and services delivered during the reporting fiscal year for each Project, for Project Evaluation.
A82: Rows 10B-34B, Column K: Enter the amount of 1991 Realignment funds expended for goods and services delivered during the reporting fiscal year for each Project, for Project Evaluation.
A83: Rows 10B-34B, Column L: Enter the amount of Behavioral Health Subaccount funds expended for goods and services delivered during the reporting fiscal year for each Project, for Project Evaluation.
A84: Rows 10B-34B, Column M: Enter the amount of Other funds expended for goods and services delivered during the reporting fiscal year for each Project, for Project Evaluation.
A85: Rows 10B-34B, Column N: No entry. This amount is the sum of Rows 10B-34B, Columns I-M.
A86: Rows10C-34C, Column A: No entry. This field auto-populates as the County enters expenditure data and is determined according to the County Name entered on Worksheet 1. Information, Row 3. The County Code corresponds to the numeric ID code used to identify the County in the Data Collection and Reporting system.
A87: Rows 10C-34C, Column B: No entry. This data autopopulates from Rows 10A-34A, Column B.
A88: Rows 10C-34C, Column C: No entry. This data autopopulates from Rows 10A-34A, Column C.
A89: Rows 10C-34C, Column D: No entry. This data autopopulates from Rows 10A-34A, Column D.
A90: Rows 10C-34C, Column E: No entry. This data autopopulates from Rows 10A-34A, Column E.
A91: Rows 10C-34C, Column F: No entry. This data autopopulates from Rows 10A-34A, Column F.
A92: Rows 10C-34C, Column G: No entry. This data autopopulates from Rows 10A-34A, Column G.
A93: Rows 10C-34C, Column H: No entry.
A94: Rows 10C-34C, Column I: Enter the amount of MHSA funds, including interest, expended for goods and services delivered during the reporting fiscal year for each Project, for Project Direct.
A95: Rows 10C-34C, Column J: Enter the amount of Medi-Cal FFP funds expended for goods and services delivered during the reporting fiscal year for each Project, for Project Direct.
A96: Rows 10C-34C, Column K: Enter the amount of 1991 Realignment funds expended for goods and services delivered during the reporting fiscal year for each Project, for Project Direct.
A97: Rows 10C-34C, Column L: Enter the amount of Behavioral Health Subaccount funds expended for goods and services delivered during the reporting fiscal year for each Project, for Project Direct.
A98: Rows 10C-34C, Column M: Enter the amount of Other funds expended for goods and services delivered during the reporting fiscal year for each Project, for Project Direct.
A99: Rows 10C-34C, Column N: No entry. This amount is the sum of Rows 10C-34C, Columns I-M.
A100: Rows10D-34D, Column A: No entry. This field auto-populates as the County enters expenditure data and is determined according to the County Name entered on Worksheet 1. Information, Row 3. The County Code corresponds to the numeric ID code used to identify the County in the Data Collection and Reporting system.
A101: Rows 10D-34D, Column B: No entry. This data autopopulates from Rows 10A-34A, Column B.
A102: Rows 10D-34D, Column C: No entry. This data autopopulates from Rows 10A-34A, Column C.
A103: Rows 10D-34D, Column D: No entry. This data autopopulates from Rows 10A-34A, Column D.
A104: Rows 10D-34D, Column E: No entry. This data autopopulates from Rows 10A-34A, Column E.
A105: Rows 10D-34D, Column F: No entry. This data autopopulates from Rows 10A-34A, Column F.
A106: Rows 10D-34D, Column G: No entry. This data autopopulates from Rows 10A-34A, Column G.
A107: Rows 10D-34D, Column H: No entry.
A108: Rows 10D-34D, Column I: No entry. This amount is the sum of Rows 10A-34A, Rows 10B-34B, Rows 10C-34C, Column I.
A109: Rows 10D-34D, Column J: No entry. This amount is the sum of Rows 10A-34A, Rows 10B-34B, Rows 10C-34C, Column J.
A110: Rows 10D-34D, Column K: No entry. This amount is the sum of Rows 10A-34A, Rows 10B-34B, Rows 10C-34C, Column K.
A111: Rows 10D-34D, Column L: No entry. This amount is the sum of Rows 10A-34A, Rows 10B-34B, Rows 10C-34C, Column L.
A112: Rows 10D-34D, Column M: No entry. This amount is the sum of Rows 10A-34A, Rows 10B-34B, Rows 10C-34C, Column M.
A113: Rows 10D-34D, Column N: No entry. This amount is the sum of Rows 10D-34D, Columns I-M.

Sheet 6. WET
A1: Press UP or DOWN arrow to read through the WET spreadsheet. In section 1, use the UP and DOWN arrow for different WET expenditures. Use LEFT or RIGHT arrow on these cell rows to input amount of fund type. In section 2, use the UP and DOWN arrow to read through the different funding categories and use LEFT or RIGHT arrow to input amount of fund type. | B1: STATE OF CALIFORNIA | K1: Department of Health Care Services
B2: HEALTH AND HUMAN SERVICES AGENCY
B4: DHCS 1822 F (02/19)
B5: ='1. Information'!B5 -> Annual Mental Health Services Act (MHSA) Revenue and Expenditure Report
B6: ='1. Information'!B6 -> Fiscal Year: 2020/2021
B7: Workforce Education and Training (WET) Summary Worksheet
C9: County: | D9: =IF(ISBLANK('1. Information'!D11),"",'1. Information'!D11) -> Kings | F9: Date: | G9: =IF(ISBLANK('1. Information'!D9),"",'1. Information'!D9) -> 2021-12-31
B11: SECTION ONE
F13: A | G13: B | H13: C | I13: D | J13: E | K13: F
F14: Total MHSA Funds (Including Interest) | G14: Medi-Cal FFP | H14: 1991 Realignment | I14: Behavioral Health Subaccount | J14: Other | K14: Grand Total
B15: 1 | C15: WET Annual Planning Costs | F15: 0 | G15: 0 | H15: 0 | I15: 0 | J15: 0 | K15: =SUM(F15:J15) -> 0
B16: 2 | C16: WET Evaluation Costs | F16: 0 | G16: 0 | H16: 0 | I16: 0 | J16: 0 | K16: =SUM(F16:J16) -> 0
B17: 3 | C17: WET Administration Costs | F17: 0 | G17: 0 | H17: 0 | I17: 0 | J17: 0 | K17: 0
B18: 4 | C18: WET Funds Transferred to JPA | F18: 0 | K18: =F18 -> 0
B19: 5 | C19: WET Expenditures Incurred by JPA | F19: 0 | K19: =F19 -> 0
B20: 6 | C20: WET Program Expenditures | F20: =SUM(E28:E32) -> 0 | G20: =SUM(F28:F32) -> 0 | H20: 0 | I20: 0 | J20: =SUM(I28:I32) -> 0 | K20: 0
B21: 7 | C21: Total WET Expenditures (Excluding Transfers to JPA) | F21: =SUM(F15:F17,F19:F20) -> 0 | G21: =SUM(G15:G17,G20) -> 0 | H21: =SUM(H15:H17,H20) -> 0 | I21: =SUM(I15:I17,I20) -> 0 | J21: =SUM(J15:J17,J20) -> 0 | K21: 0
B24: SECTION TWO
C26: A | D26: B | E26: C | F26: D | G26: E | H26: F | I26: G | J26: H
B27: # | C27: County Code | D27: Funding Category | E27: Total MHSA Funds (Including Interest) | F27: Medi-Cal FFP | G27: 1991 Realignment | H27: Behavioral Health Subaccount | I27: Other | J27: Grand Total
B28: 8 | C28: =IF(J28<>0,VLOOKUP($D$9,Info_County_Code,2,FALSE),"") ->  | D28: Workforce Staffing | J28: =SUM(E28:I28) -> 0
B29: 9 | D29: Training/Technical Assistance | J29: =SUM(E29:I29) -> 0
B30: 10 | D30: Mental Health Career Pathways | J30: 0
B31: 11 | D31: Residency/Internship | J31: 0
B32: 12 | D32: Financial Incentive | J32: 0

Sheet Instructions 6. WET
A1: Use UP or DOWN arrow to navigate through spreadsheet.
A2: County: No entry. This field will auto-populate from the Information worksheet.
A3: Date: No entry. This field will auto-populate from the Information worksheet.
A4: Row 1, Column A: Enter the amount of MHSA funds, including interest, expended for WET Annual Planning.
A5: Row 1, Column B: Enter the amount of Medi-Cal FFP funds expended for WET Annual Planning.
A6: Row 1, Column C: Enter the amount of 1991 Realignment funds expended for WET Annual Planning.
A7: Row 1, Column D: Enter the amount of Behavioral Health Subaccount funds expended for WET Annual Planning.
A8: Row 1, Column E: Enter the amount of Other funds expended for WET Annual Planning. Other funds include funding from sources not otherwise identified such as from local General Fund or other local sources, or from sources such as Federal grants or other grants.
A9: Row 1, Column F: No entry. This amount is the sum of Row 1, Columns A-E.
A10: Row 2, Column A: Enter the amount of MHSA funds, including interest, expended for WET Evaluation.
A11: Row 2, Column B: Enter the amount of Medi-Cal FFP funds expended for WET Evaluation.
A12: Row 2, Column C: Enter the amount of 1991 Realignment funds expended for WET Evaluation.
A13: Row 2, Column D: Enter the amount of Behavioral Health Subaccount funds expended for WET Evaluation.
A14: Row 2, Column E: Enter the amount of Other funds expended for WET Evaluation.
A15: Row 2, Column F: No entry. This amount is the sum of Row 2, Columns A-E.
A16: Row 3, Column A: Enter the amount of MHSA funds, including interest, expended for WET Administration. This amount should include direct administrative costs and an appropriate allocation of indirect costs. Direct administrative costs are administrative costs that only benefit WET programs or services. Indirect administrative costs are those administrative costs that are incurred for a common or joint purpose and cannot be readily identified as benefiting only one MHSA component. Counties must use an appropriate allocation method to allocate indirect costs to the WET Account. The share of costs attributed to the WET Account should be in proportion to the extent the WET programs or services benefit from the support activity. Counties must maintain proper documentation of the allocation methodology used to allocate indirect costs to administration of WET programs or services. To avoid double-counting, do not include costs incurred as both Administration Costs and either Annual Planning Costs, Evaluation Costs or Program Expenditures.
A17: Row 3, Column B: Enter the amount of Medi-Cal FFP funds expended for WET Administration.
A18: Row 3, Column C: Enter the amount of 1991 Realignment funds expended for WET Administration.
A19: Row 3, Column D: Enter the amount of Behavioral Health Subaccount funds expended for WET Administration.
A20: Row 3, Column E: Enter the amount of Other funds expended for WET Administration.
A21: Row 3, Column F: No entry. This amount is the sum of Row 3, Columns A-E.
A22: Row 4, Column A: Enter the amount of MHSA funds, including interest, transferred to a Joint Powers Authority (JPA) for WET programs.
A23: Row 4, Column B: This cell is blank.
A24: Row 4, Column C: This cell is blank.
A25: Row 4, Column D: This cell is blank.
A26: Row 4, Column E: This cell is blank.
A27: Row 4, Column F: No entry. This amount is equal to Row 4, Column A.
A28: Row 5, Column A: Enter the amount of MHSA funds, including interest, expended by a JPA on behalf of the County during the reporting fiscal year for authorized WET goods or services.
A29: Row 5, Column B: This cell is blank.
A30: Row 5, Column C: This cell is blank.
A31: Row 5, Column D: This cell is blank.
A32: Row 5, Column E: This cell is blank.
A33: Row 5, Column F: No entry. This amount is equal to Row 5, Column A.
A34: Row 6, Column A: No entry. This amount is the sum of Rows 8-12, Column C.
A35: Row 6, Column B: No entry. This amount is the sum of Rows 8-12, Column D.
A36: Row 6, Column C: No entry. This amount is the sum of Rows 8-12, Column E.
A37: Row 6, Column D: No entry. This amount is the sum of Rows 8-12, Column F.
A38: Row 6, Column E: No entry. This amount is the sum of Rows 8-12, Column G.
A39: Row 6, Column F: No entry. This amount is the sum of Row 6, Columns A-E.
A40: Row 7, Column A: No entry. This amount is the sum of Rows 1-3 and 5-6, Column A.
A41: Row 7, Column B: No entry. This amount is the sum of Rows 1-3 and 6, Column B.
A42: Row 7, Column C: No entry. This amount is the sum of Rows 1-3 and 6, Column C.
A43: Row 7, Column D: No entry. This amount is the sum of Rows 1-3 and 6, Column D.
A44: Row 7, Column E: No entry. This amount is the sum of Rows 1-3 and 6, Column E.
A45: Row 7, Column F: No entry. This amount is the sum of Row 7, Columns A-E.
A46: Row 8, Column A: No entry. This field auto-populates as the County enters expenditure data and is determined according to the County Name entered on Worksheet 1. Information, Row 3. The County Code corresponds to the numeric ID code used to identify the County in the Data Collection and Reporting system.
A47: Row 8, Column B: No entry.
A48: Row 8, Column C: Enter the amount of MHSA funds, including interest, expended for goods and services delivered during the reporting fiscal year for Workforce Staffing.
A49: Row 8, Column D: Enter the amount of MediCal FFP funds expended for goods and services delivered during the reporting fiscal year for Workforce Staffing.
A50: Row 8, Column E: Enter the amount of 1991 Realignment funds expended for goods and services delivered during the reporting fiscal year for Workforce Staffing.
A51: Row 8, Column F: Enter the amount of Behavioral Health Subaccount funds expended for goods and services delivered during the reporting fiscal year for Workforce Staffing.
A52: Row 8, Column G: Enter the amount of Other funds expended for goods and services delivered during the reporting fiscal year for Workforce Staffing.
A53: Row 8, Column H: No entry. This amount is the sum of Row 8, Columns C-G.
A54: Row 9, Column A: No entry. This field auto-populates as the County enters expenditure data and is determined according to the County Name entered on Worksheet 1. Information, Row 3. The County Code corresponds to the numeric ID code used to identify the County in the Data Collection and Reporting system.
A55: Row 9, Column B: No entry.
A56: Row 9, Column C: Enter the amount of MHSA funds, including interest, expended for goods and services delivered during the reporting fiscal year for Training/Technical Assistance.
A57: Row 9, Column D: Enter the amount of MediCal FFP funds expended for goods and services delivered during the reporting fiscal year for Training/Technical Assistance.
A58: Row 9, Column E: Enter the amount of 1991 Realignment funds expended for goods and services delivered during the reporting fiscal year for Training/Technical Assistance.
A59: Row 9, Column F: Enter the amount of Behavioral Health Subaccount funds expended for goods and services delivered during the reporting fiscal year for Training/Technical Assistance.
A60: Row 9, Column G: Enter the amount of Other funds expended for goods and services delivered during the reporting fiscal year for Training/Technical Assistance.
A61: Row 9, Column H: No entry. This amount is the sum of Row 9, Columns C-G.
A62: Row 10, Column A: No entry. This field auto-populates as the County enters expenditure data and is determined according to the County Name entered on Worksheet 1. Information, Row 3. The County Code corresponds to the numeric ID code used to identify the County in the Data Collection and Reporting system.
A63: Row 10, Column B: No entry.
A64: Row 10, Column C: Enter the amount of MHSA funds, including interest, expended for goods and services delivered during the reporting fiscal year for Mental Health Career Pathways.
A65: Row 10, Column D: Enter the amount of MediCal FFP funds expended for goods and services delivered during the reporting fiscal year for Mental Health Career Pathways.
A66: Row 10, Column E: Enter the amount of 1991 Realignment funds expended for goods and services delivered during the reporting fiscal year for Mental Health Career Pathways.
A67: Row 10, Column F: Enter the amount of Behavioral Health Subaccount funds expended for goods and services delivered during the reporting fiscal year for Mental Health Career Pathways.
A68: Row 10, Column G: Enter the amount of Other funds expended for goods and services delivered during the reporting fiscal year for Mental Health Career Pathways.
A69: Row 10, Column H: No entry. This amount is the sum of Row 10, Columns C-G.
A70: Row 11, Column A: No entry. This field auto-populates as the County enters expenditure data and is determined according to the County Name entered on Worksheet 1. Information, Row 3. The County Code corresponds to the numeric ID code used to identify the County in the Data Collection and Reporting system.
A71: Row 11, Column B: No entry.
A72: Row 11, Column C: Enter the amount of MHSA funds, including interest, expended for goods and services delivered during the reporting fiscal year for Residency/Internship.
A73: Row 11, Column D: Enter the amount of MediCal FFP funds expended for goods and services delivered during the reporting fiscal year for Residency/Internship.
A74: Row 11, Column E: Enter the amount of 1991 Realignment funds expended for goods and services delivered during the reporting fiscal year for Residency/Internship.
A75: Row 11, Column F: Enter the amount of Behavioral Health Subaccount funds expended for goods and services delivered during the reporting fiscal year for Residency/Internship.
A76: Row 11, Column G: Enter the amount of Other funds expended for goods and services delivered during the reporting fiscal year for Residency/Internship.
A77: Row 11, Column H: No entry. This amount is the sum of Row 11, Columns C-G.
A78: Row 12, Column A: No entry. This field auto-populates as the County enters expenditure data and is determined according to the County Name entered on Worksheet 1. Information, Row 3. The County Code corresponds to the numeric ID code used to identify the County in the Data Collection and Reporting system.
A79: Row 12, Column B: No entry.
A80: Row 12, Column C: Enter the amount of MHSA funds, including interest, expended for goods and services delivered during the reporting fiscal year for Financial Incentives.
A81: Row 12, Column D: Enter the amount of MediCal FFP funds expended for goods and services delivered during the reporting fiscal year for Financial Incentives.
A82: Row 12, Column E: Enter the amount of 1991 Realignment funds expended for goods and services delivered during the reporting fiscal year for Financial Incentives.
A83: Row 12, Column F: Enter the amount of Behavioral Health Subaccount funds expended for goods and services delivered during the reporting fiscal year for Financial Incentives.
A84: Row 12, Column G: Enter the amount of Other funds expended for goods and services delivered during the reporting fiscal year for Financial Incentives.
A85: Row 12, Column H: No entry. This amount is the sum of Row 12, Columns C-G.

Sheet 7. CFTN
A1: Press UP or DOWN arrow to navigate through CFTN spreadsheet. In section 1, use UP and DOWN arrow to read the CFTN expenditures and use the LEFT or RIGHT arrows to input amount of funding type. In section 2, use LEFT or RIGHT arrow on the header column to read about project components and use the UP or DOWN arrow on these cells to input needed information. | B1: STATE OF CALIFORNIA | L1: Department of Health Care Services
B2: HEALTH AND HUMAN SERVICES AGENCY
B4: DHCS 1822 G (02/19)
B5: ='1. Information'!B5 -> Annual Mental Health Services Act (MHSA) Revenue and Expenditure Report
B6: ='1. Information'!B6 -> Fiscal Year: 2020/2021
B7: Capital Facility Technological Needs (CFTN) Summary Worksheet
B9: County: | D9: =IF(ISBLANK('1. Information'!D11),"",'1. Information'!D11) -> Kings | F9: Date: | G9: =IF(ISBLANK('1. Information'!D9),"",'1. Information'!D9) -> 2021-12-31
B11: SECTION ONE
F13: A | G13: B | H13: C | I13: D | J13: E | K13: F
F14: Total MHSA Funds (Including Interest) | G14: Medi-Cal FFP | H14: 1991 Realignment | I14: Behavioral Health Subaccount | J14: Other | K14: Grand Total
B15: 1 | C15: CFTN Annual Planning Costs | F15: 0 | G15: 0 | H15: 0 | I15: 0 | J15: 0 | K15: =SUM(F15:J15) -> 0
B16: 2 | C16: CFTN Evaluation Costs | F16: 0 | G16: 0 | H16: 0 | I16: 0 | J16: 0 | K16: =SUM(F16:J16) -> 0
B17: 3 | C17: CFTN Administration Costs | F17: 0 | G17: 0 | H17: 0 | I17: 0 | J17: 0 | K17: 0
B18: 4 | C18: CFTN Funds Transferred to JPA | F18: 0 | K18: =F18 -> 0
B19: 5 | C19: CFTN Expenditures Incurred by JPA | F19: 0 | K19: =F19 -> 0
B20: 6 | C20: CFTN Project Expenditures | F20: =SUM(G27:G46) -> 0 | G20: =SUM(H27:H46) -> 0 | H20: =SUM(I27:I46) -> 0 | I20: =SUM(J27:J46) -> 0 | J20: =SUM(K27:K46) -> 0 | K20: 0
B21: 7 | C21: Total CFTN Expenditures (Excluding Transfers to JPA) | F21: =SUM(F15:F17,F19:F20) -> 0 | G21: =SUM(G15:G17,G20) -> 0 | H21: =SUM(H15:H17,H20) -> 0 | I21: 0 | J21: 0 | K21: =SUM(F21:J21) -> 0
B23: SECTION TWO
C25: A | D25: B | E25: C | F25: D | G25: E | H25: F | I25: G | J25: H | K25: I | L25: J
B26: # | C26: County Code | D26: Project Name | E26: Prior Project Name | F26: Project Type | G26: Total MHSA Funds (Including Interest) | H26: Medi-Cal FFP | I26: 1991 Realignment | J26: Behavioral Health Subaccount | K26: Other | L26: Grand Total
B27: 8 | C27: =IF(L27<>0,VLOOKUP($D$9,Info_County_Code,2,FALSE),"") ->  | L27: =SUM(G27:K27) -> 0
B28: 9 | L28: =SUM(G28:K28) -> 0
B29: 10 | L29: 0
B30: 11 | L30: 0
B31: 12 | L31: 0
B32: 13 | L32: 0
B33: 14 | L33: 0
B34: 15 | L34: 0
B35: 16 | L35: 0
B36: 17 | L36: 0
B37: 18 | L37: 0
B38: 19 | L38: 0
B39: 20 | L39: 0
B40: 21 | L40: 0
B41: 22 | L41: 0
B42: 23 | L42: 0
B43: 24 | L43: 0
B44: 25 | L44: 0
B45: 26 | L45: 0
B46: 27 | L46: 0

Sheet Instructions 7. CFTN
A1: Use UP or DOWN arrow to navigate spreadsheet.
A2: County: No entry. This field will auto-populate from the Information worksheet.
A3: Date: No entry. This field will auto-populate from the Information worksheet.
A4: Row 1, Column A: Enter the amount of MHSA funds, including interest, expended for CFTN Annual Planning.
A5: Row 1, Column B: Enter the amount of Medi-Cal FFP funds expended for CFTN Annual Planning.
A6: Row 1, Column C: Enter the amount of 1991 Realignment funds expended for CFTN Annual Planning.
A7: Row 1, Column D: Enter the amount of Behavioral Health Subaccount funds expended for CFTN Annual Planning.
A8: Row 1, Column E: Enter the amount of Other funds expended for CFTN Annual Planning. Other funds include funding from sources not otherwise identified such as from local General Fund or other local sources, or from sources such as Federal grants or other grants.
A9: Row 1, Column F: No entry. This amount is the sum of Row 1, Columns A-E.
A10: Row 2, Column A: Enter the amount of MHSA funds, including interest, expended for CFTN Evaluation.
A11: Row 2, Column B: Enter the amount of Medi-Cal FFP funds expended for CFTN Evaluation.
A12: Row 2, Column C: Enter the amount of 1991 Realignment funds expended for CFTN Evaluation.
A13: Row 2, Column D: Enter the amount of Behavioral Health subaccount funds expended for CFTN Evaluation.
A14: Row 2, Column E: Enter the amount of Other funds expended for CFTN Evaluation.
A15: Row 2, Column F: No entry. This amount is the sum of Row 2, Columns A-E.
A16: Row 3, Column A: Enter the amount of MHSA funds, including interest, expended for CFTN Administration. This amount should include direct administrative costs and an appropriate allocation of indirect costs. Direct administrative costs are administrative costs that only benefit CFTN projects. Indirect administrative costs are those administrative costs that are incurred for a common or joint purpose and cannot be readily identified as benefiting only one MHSA component. Counties must use an appropriate allocation method to allocate indirect costs to the CFTN Account. The share of costs attributed to the CFTN Account should be in proportion to the extent the CFTN project benefit from the support activity. Counties must maintain proper documentation of the allocation methodology used to allocate indirect costs to administration of CFTN projects. To avoid double-counting, do not include costs incurred as both Administration Costs and either Annual Planning Costs, Evaluation Costs or Project Expenditures.
A17: Row 3, Column B: Enter the amount of Medi-Cal FFP funds expended for CFTN Administration.
A18: Row 3, Column C: Enter the amount of 1991 Realignment funds expended for CFTN Administration.
A19: Row 3, Column D: Enter the amount of Behavioral Health subaccount funds expended for CFTN Administration.
A20: Row 3, Column E: Enter the amount of Other funds expended for CFTN Administration.
A21: Row 3, Column F: No entry. This amount is the sum of Row 3, Columns A-E.
A22: Row 4, Column A: Enter the amount of MHSA funds, including interest, transferred to a Joint Powers Authority (JPA) for CFTN projects.
A23: Row 4, Column B: This cell is blank.
A24: Row 4, Column C: This cell is blank.
A25: Row 4, Column D: This cell is blank.
A26: Row 4, Column E: This cell is blank.
A27: Row 4, Column F: No entry. This amount is equal to Row 4, Column A.
A28: Row 5, Column A: Enter the amount of MHSA funds, including interest, expended by a JPA on behalf of the County during the reporting fiscal year for authorized CFTN goods or services.
A29: Row 5, Column B: This cell is blank.
A30: Row 5, Column C: This cell is blank.
A31: Row 5, Column D: This cell is blank.
A32: Row 5, Column E: This cell is blank.
A33: Row 5, Column F: No entry. This amount is equal to Row 5, Column A.
A34: Row 6, Column A: No entry. This amount is the sum of Rows 8-27, Column E.
A35: Row 6, Column B: No entry. This amount is the sum of Rows 8-27, Column F.
A36: Row 6, Column C: No entry. This amount is the sum of Rows 8-27, Column G.
A37: Row 6, Column D: No entry. This amount is the sum of Rows 8-27, Column H.
A38: Row 6, Column E: No entry. This amount is the sum of Rows 8-27, Column I.
A39: Row 6, Column F: No entry. This amount is the sum of Row 6, Columns A-E.
A40: Row 7, Column A: No entry. This amount is the sum of Rows 1-3 and 5-6, Column A.
A41: Row 7, Column B: No entry. This amount is the sum of Rows 1-3 and 6, Column B.
A42: Row 7, Column C: No entry. This amount is the sum of Rows 1-3 and 6, Column C.
A43: Row 7, Column D: No entry. This amount is the sum of Rows 1-3 and 6, Column D.
A44: Row 7, Column E: No entry. This amount is the sum of Rows 1-3 and 6, Column E.
A45: Row 7, Column F: No entry. This amount is the sum of Row 7, Columns A-E.
A46: Rows 8-27, Column A: No entry. This field auto-populates as the County enters expenditure data and is determined according to the County Name entered on Worksheet 1. Information, Row 3. The County Code corresponds to the numeric ID code used to identify the County in the Data Collection and Reporting system.
A47: Rows 8-27, Column B: Enter the Project name for each CFTN project funded by the CFTN Account. Project name must be consistent with Project Name provided in the most recent MHSA Three-Year Program and Expenditure Plan or Annual Update covering the same Fiscal Year. If a County has changed the name of a Project subsequent to publication of the relevant Three-Year Program and Expenditure Plan or Annual Update, the County must provide the name change on worksheet 10. Comments.
A48: Rows 8-27, Column C: If the Project name is identical to the Project name reported in the prior year ARER or this is a new project this reporting year, no entry. If the Project name has changed from what was reported on the prior year ARER, enter the name used to identify this Project in the prior year ARER. If this project represents a combination of two or more projects formerly reported separately, or if this program was formerly combined with another Project leave this field blank, but provide a comment on the Worksheet 10.
A49: Rows 8-27, Column D: Selection Only. Select the Project Type. Options are Capital Facility or Technological Needs.
A50: Rows 8-27, Column E: Enter the amount of MHSA funds, including interest, expended for goods and services delivered during the reporting fiscal year for CFTN.
A51: Row 8-27, Column F: Enter the amount of MediCal FFP funds expended for goods and services delivered during the reporting fiscal year for CFTN.
A52: Row 8-27, Column G: Enter the amount of 1991 Realignment funds expended for goods and services delivered during the reporting fiscal year for CFTN.
A53: Row 8-27, Column H: Enter the amount of Behavioral Health Subaccount funds expended for goods and services delivered during the reporting fiscal year for CFTN.
A54: Row 8-27, Column I: Enter the amount of Other funds expended for goods and services delivered during the reporting fiscal year for CFTN.
A55: Row 8-27, Column J: No entry. This amount is the sum of Rows 8-27, Columns E-I.

Sheet 8. Adjustment (MHSA)
A1: Press UP or DOWN arrow to input items into each row. Use LEFT or RIGHT arrow on Row 12 to read the headers for information needed. | B1: STATE OF CALIFORNIA | H1: Department of Health Care Services
B2: HEALTH AND HUMAN SERVICES AGENCY
B4: DHCS 1822 H (02/19)
B5: ='1. Information'!B5 -> Annual Mental Health Services Act (MHSA) Revenue and Expenditure Report
B6: ='1. Information'!B6 -> Fiscal Year: 2020/2021
B7: MHSA Adjustments Worksheet
B9: County: | D9: =IF(ISBLANK('1. Information'!D11),"",'1. Information'!D11) -> Kings | F9: Date | G9: =IF(ISBLANK('1. Information'!D9),"",'1. Information'!D9) -> 2021-12-31
B11: SECTION ONE
C13: A | D13: B | E13: C | F13: D | G13: E | H13: F
B14: # | C14: County Code | D14: Account | E14: Adjustment Type | F14: Adjustment to Fiscal Year | G14: Amount | H14: Reason
B15: 1 | C15: =IF(G15<>0,VLOOKUP($D$9,Info_County_Code,2,FALSE),"") -> 
B16: 2
B17: 3
B18: 4
B19: 5
B20: 6
B21: 7
B22: 8
B23: 9
B24: 10
B25: 11
B26: 12
B27: 13
B28: 14
B29: 15
B30: 16
B31: 17
B32: 18
B33: 19
B34: 20
B35: 21
B36: 22
B37: 23
B38: 24
B39: 25
B40: 26
B41: 27
B42: 28
B43: 29
B44: 30
C45: =IF(NOT(COUNTA(E45:H45)),"",VLOOKUP(E23,Info_County_Code,2,FALSE)) -> 
B47: SECTION TWO
C49: A | D49: B | E49: C | F49: D | G49: E
B50: # | C50: County Code | D50: Account | E50: Adjustment to Fiscal Year | F50: Amount | G50: Reason
B51: 31 | C51: =IF(F51<>0,VLOOKUP($D$9,Info_County_Code,2,FALSE),"") ->  | D51: Prudent Reserve
B52: 32 | D52: Prudent Reserve
B53: 33 | D53: Prudent Reserve
B54: 34 | D54: Prudent Reserve
B55: 35 | D55: Prudent Reserve
B56: 36 | D56: Prudent Reserve
B57: 37 | D57: Prudent Reserve
B58: 38 | D58: Prudent Reserve
B59: 39 | D59: Prudent Reserve
B60: 40 | D60: Prudent Reserve
B61: 41 | D61: Prudent Reserve
B62: 42 | D62: Prudent Reserve
B63: 43 | D63: Prudent Reserve
B64: 44 | D64: Prudent Reserve
B65: 45 | D65: Prudent Reserve
B66: 46 | D66: Prudent Reserve
B67: 47 | D67: Prudent Reserve
B68: 48 | D68: Prudent Reserve
B69: 49 | D69: Prudent Reserve
B70: 50 | D70: Prudent Reserve
B71: 51 | D71: Prudent Reserve
B72: 52 | D72: Prudent Reserve
B73: 53 | D73: Prudent Reserve
B74: 54 | D74: Prudent Reserve
B75: 55 | D75: Prudent Reserve
B76: 56 | D76: Prudent Reserve
B77: 57 | D77: Prudent Reserve
B78: 58 | D78: Prudent Reserve
B79: 59 | D79: Prudent Reserve
B80: 60 | D80: Prudent Reserve

Sheet Instructions 8. Adjust (MHSA)
A1: Use UP or DOWN arrow to navigate spreadsheet.
A2: County: No entry. This field will auto-populate from the Information worksheet.
A3: Date: No entry. This field will auto-populate from the Information worksheet.
A4: Rows 1-60, Column A: No entry. This field auto-populates as the County enters expenditure data and is determined according to the County Name entered on Worksheet 1. Information, Row 3. The County Code corresponds to the numeric ID code used to identify the County in the Data Collection and Reporting system.
A5: Rows 1-30, Column B: Selection only. Enter the Account for which the MHSA adjustment is being reported. Options include CSS, PEI, INN, WET, or CFTN.
A6: Rows 1-30, Column C: Selection only. Enter the adjustment type. Options include expenditure or interest revenue.
A7: Rows 1-30, Column D: Enter the Fiscal Year for which the adjustment is being reported.
A8: Rows 1-30, Column E: Enter the amount of the adjustment. Enter a positive number to reflect an increase in MHSA expenditures or interest revenue and a negative number to reflect a decrease in MHSA expenditures or interest revenue.
A9: Rows 1-30, Column F: Enter the reason for the adjustment.
A10: Rows 31-60, Column B: No entry.
A11: Rows 31-60, Column C: Enter the Fiscal Year for which the adjustment is being reported.
A12: Rows 31-60, Column D: Enter the amount of the adjustment. Enter a positive number to reflect an increase to the Prudent Reserve and a negative number to reflect a decrease to the Prudent Reserve.
A13: Rows 31-60, Column E: Enter the reason for the adjustment.

Sheet 9. Adjustment (FFP)
A1: Press UP or DOWN arrow to input items into each row. Use LEFT or RIGHT arrow on Row 12 to read the headers for information needed. | B1: STATE OF CALIFORNIA | I1: Department of Health Care Services
B2: HEALTH AND HUMAN SERVICES AGENCY
B4: DHCS 1822 I (02/19)
B5: ='1. Information'!B5 -> Annual Mental Health Services Act (MHSA) Revenue and Expenditure Report
B6: ='1. Information'!B6 -> Fiscal Year: 2020/2021
B7: FFP Revenue Adjustment Worksheet
B9: County: | D9: =IF(ISBLANK('1. Information'!D11),"",'1. Information'!D11) -> Kings | F9: Date: | G9: =IF(ISBLANK('1. Information'!D9),"",'1. Information'!D9) -> 2021-12-31
B11: SECTION ONE
C13: A | D13: B | E13: C | F13: D | G13: E | H13: F | I13: G
B14: # | C14: County Code | D14: Adjustment to FY | E14: Cost Report Stage | F14: Account | G14: Beginning Balance | H14: Adjustment Amount | I14: Ending Balance
B15: 1 | C15: =IF(I15<>0,VLOOKUP($D$9,Info_County_Code,2,FALSE),"") ->  | I15: =SUM(G15:H15) -> 0
B16: 2 | I16: =SUM(G16:H16) -> 0
B17: 3 | I17: 0
B18: 4 | I18: =SUM(G18:H18) -> 0
B19: 5 | I19: 0
B20: 6 | I20: 0
B21: 7 | I21: 0
B22: 8 | I22: 0
B23: 9 | I23: 0
B24: 10 | I24: 0
B25: 11 | I25: 0
B26: 12 | I26: 0
B27: 13 | I27: 0
B28: 14 | I28: 0
B29: 15 | I29: 0
B30: 16 | I30: 0
B31: 17 | I31: 0
B32: 18 | I32: 0
B33: 19 | I33: 0
B34: 20 | I34: 0
B35: 21 | I35: 0
B36: 22 | I36: 0
B37: 23 | I37: 0
B38: 24 | I38: 0
B39: 25 | I39: 0
B40: 26 | I40: 0
B41: 27 | I41: 0
B42: 28 | I42: 0
B43: 29 | I43: 0
B44: 30 | I44: 0
B45: 31 | I45: 0
B46: 32 | I46: 0
B47: 33 | I47: 0
B48: 34 | I48: 0
B49: 35 | I49: 0
B50: 36 | I50: 0
B51: 37 | I51: 0
B52: 38 | I52: 0
B53: 39 | I53: 0
B54: 40 | I54: 0

Sheet Instructions 9. Adjust (FFP)
A1: Use UP or DOWN arrow to navigate spreadsheet.
A2: County: No entry. This field will auto-populate from the Information worksheet.
A3: Date: No entry. This field will auto-populate from the Information worksheet.
A4: Rows 1-40, Column A: No entry. This field auto-populates as the County enters expenditure data and is determined according to the County Name entered on Worksheet 1. Information, Row 3. The County Code corresponds to the numeric ID code used to identify the County in the Data Collection and Reporting system.
A5: Rows 1-40, Column B: Enter the fiscal year for which the County is entering an adjustment to the amount of MHSA funds expended due to a change in FFP revenue.
A6: Rows 1-40, Column C: Selection only. Enter cost report stage. Options include Initial, Settled, Audited. Select Initial if the adjustment is due to a change to the amount of FFP revenue after the County filed its initial cost report for the Fiscal Year identified in Column B. Select Settled, if the adjustment is due to a change to the amount of FFP revenue after the Department completed its interim cost report settlement for the Fiscal Year identified in Column B. Select Audit, if the adjustment is due to a change to the amount of FFP revenue received after DHCS completed its audit of the cost report for the Fiscal Year identified in Column B.
A7: Rows 1-40, Column D: Selection only. Enter the Account for which the MHSA adjustment is being reported. Options include CSS, PEI, INN, WET, or CFTN.
A8: Rows 1-40, Column E: Enter the amount of MHSA funds expended for the component identified in Column D as reported in the ARER filed for the fiscal year identified in Column B.
A9: Rows 1-40, Column F: Enter the amount of the MHSA expenditures to be adjusted. Enter a positive number to report an increase to MHSA expenditures and a negative number to report a decrease to MHSA expenditures.
A10: Rows 1-40, Column G: No entry. This amount is the sum of Rows 1-40, Columns E-F.

Sheet 10. Comments
A1: Press UP or DOWN arrow to leave comments on the cell rows. | B1: STATE OF CALIFORNIA | F1: Department of Health Care Services
B2: HEALTH AND HUMAN SERVICES AGENCY
B4: DHCS 1822 J (02/19)
B5: ='1. Information'!B5 -> Annual Mental Health Services Act (MHSA) Revenue and Expenditure Report
B6: ='1. Information'!B6 -> Fiscal Year: 2020/2021
B7: Comments Worksheet
B9: County: | C9: =IF(ISBLANK('1. Information'!D11),"",'1. Information'!D11) -> Kings | F9: Date: | G9: =IF(ISBLANK('1. Information'!D9),"",'1. Information'!D9) -> 2021-12-31
C11: A | D11: B | E11: C
B12: # | C12: Account | D12: Fiscal Year | E12: Comments
B13: 1 | C13: CSS | D13: 2021 | E13: PR interest was recorded with CSS interest
B14: 2
B15: 3
B16: 4
B17: 5
B18: 6
B19: 7
B20: 8
B21: 9
B22: 10
B23: 11
B24: 12
B25: 13
B26: 14
B27: 15
B28: 16
B29: 17
B30: 18
B31: 19
B32: 20
B33: 21
B34: 22
B35: 23
B36: 24
B37: 25
B38: 26
B39: 27
B40: 28
B41: 29
B42: 30
B43: 31
B44: 32
B45: 33
B46: 34
B47: 35
B48: 36
B49: 37
B50: 38
B51: 39
B52: 40

Sheet Instructions 10. Comments
A1: Use UP or DOWN arrow to navigate spreadsheet.
A2: County: No entry. This field will auto-populate from the Information worksheet.
A3: Date: No entry. This field will auto-populate from the Information worksheet.
A4: Rows 1-40, Column A: Selection only. Select the account for which the Comment is necessary.
A5: Rows 1-40. Column B: Enter the Fiscal Year for which the Comment is necessary.
A6: Rows 1-40, Column C: Enter the Comment.

Sheet Checks (hidden)
A1: SCO Distribution
A2: FY 2017-18
C3: Total x 76% | D3: Total x 19% | E3: Total x 5% | G3: County Check: | H3: ='1. Information'!D11 -> Kings
A4: County | B4: TOTAL | C4: CSS | D4: PEI | E4: INN
A5: Alameda | B5: 70551654.33 | C5: =B5*0.76 -> 53619257.29 | D5: =B5*0.19 -> 13404814.32 | E5: =B5*0.05 -> 3527582.717 | G5: Cell | H5: Status | I5: Notes
A6: Alpine | B6: 1499512.85 | C6: =B6*0.76 -> 1139629.766 | D6: =B6*0.19 -> 284907.4415 | E6: =B6*0.05 -> 74975.6425 | G6: ='2. Component Summary'!I24 | H6: =IF(SUM('2. Component Summary'!D27:H27)='2. Component Summary'!I27,"OK","ERROR") -> OK | I6: CSS Transfers to PEI, WET, CFTN, or Prudent Reserve must net to total 0
A7: Amador | B7: 2931915.69 | C7: 2228255.924 | D7: 557063.9811 | E7: 146595.7845 | G7: ='2. Component Summary'!D37 | H7: =IF('2. Component Summary'!D40*0.05>VLOOKUP(H3,SCO_Distribution,2,FALSE),"ERROR","OK") -> OK | I7: Total MHSA costs for planning for all components may not exceed 5 percent of the total annual MHSA revenues received by the County.
A8: Berkeley | B8: 5994545.01 | C8: 4555854.208 | D8: 1138963.552 | E8: 299727.2505 | G8: ='2. Component Summary'!D43 | H8: =IF(ISBLANK('2. Component Summary'!D46),"ERROR","OK") -> OK | I8: Counties must report total MHSA funds spent on mental health services provided to veterans for all programs and projects funded through the Community Services and Supports, Prevention and Early Intervention, and Innovation components, combined. ENTER $0 IF NO SPENDING.
A9: Butte | B9: 11405471.8 | C9: 8668158.568 | D9: 2167039.642 | E9: 570273.59 | G9: ='2. Component Summary'!G12 | H9: =IF(ISBLANK('2. Component Summary'!I14),"ERROR","OK") -> OK | I9: Counties must report the total amount of interest earned on the local MHS fund
A10: Calaveras | B10: 3208867.31 | C10: 2438739.156 | D10: 609684.7889 | E10: 160443.3655 | G10: ='2. Component Summary'!F16 | H10: =IF(ISBLANK('2. Component Summary'!F19),"ERROR","OK") -> OK | I10: Please report the beginning balance of the local prudent reserve. This amount must match the prudent reserve ending balance reported in the FY 2016-17 ARER
A11: Colusa | B11: 2568596.22 | C11: 1952133.127 | D11: 488033.2818 | E11: 128429.811
A12: Contra Costa | B12: 45360350.14 | C12: 34473866.11 | D12: 8618466.527 | E12: 2268017.507
A13: Del Norte | B13: 2728833.71 | C13: 2073913.62 | D13: 518478.4049 | E13: 136441.6855
A14: El Dorado | B14: 7928641.31 | C14: 6025767.396 | D14: 1506441.849 | E14: 396432.0655
A15: Fresno | B15: 49459289.24 | C15: 37589059.82 | D15: 9397264.956 | E15: 2472964.462
A16: Glenn | B16: 2777161.3 | C16: 2110642.588 | D16: 527660.647 | E16: 138858.065
A17: Humboldt | B17: 7058805.66 | C17: 5364692.302 | D17: 1341173.075 | E17: 352940.283
A18: Imperial | B18: 9759832.08 | C18: 7417472.381 | D18: 1854368.095 | E18: 487991.604
A19: Inyo | B19: 1843374.33 | C19: 1400964.491 | D19: 350241.1227 | E19: 92168.7165
A20: Kern | B20: 42775932.49 | C20: 32509708.69 | D20: 8127427.173 | E20: 2138796.625
A21: Kings | B21: 8142509.42 | C21: 6188307.159 | D21: 1547076.79 | E21: 407125.471
A22: Lake | B22: 3954947.83 | C22: 3005760.351 | D22: 751440.0877 | E22: 197747.3915
A23: Lassen | B23: 2718985.63 | C23: 2066429.079 | D23: 516607.2697 | E23: 135949.2815
A24: Los Angeles | B24: 562799428 | C24: 427727565.2 | D24: 106931891.3 | E24: 28139971.4
A25: Madera | B25: 8618217.03 | C25: 6549844.943 | D25: 1637461.236 | E25: 430910.8515
A26: Marin | B26: 11207287.7 | C26: 8517538.652 | D26: 2129384.663 | E26: 560364.385
A27: Mariposa | B27: 1848530.92 | C27: 1404883.499 | D27: 351220.8748 | E27: 92426.546
A28: Mendocino | B28: 4823051.52 | C28: 3665519.155 | D28: 916379.7888 | E28: 241152.576
A29: Merced | B29: 14640569.48 | C29: 11126832.8 | D29: 2781708.201 | E29: 732028.474
A30: Modoc | B30: 1685960.26 | C30: 1281329.798 | D30: 320332.4494 | E30: 84298.013
A31: Mono | B31: 1795078.7 | C31: 1364259.812 | D31: 341064.953 | E31: 89753.935
A32: Monterey | B32: 23244033.95 | C32: 17665465.8 | D32: 4416366.45 | E32: 1162201.697
A33: Napa | B33: 6536717.39 | C33: 4967905.216 | D33: 1241976.304 | E33: 326835.8695
A34: Nevada | B34: 5205259.92 | C34: 3955997.539 | D34: 988999.3848 | E34: 260262.996
A35: Orange | B35: 161768522.7 | C35: 122944077.2 | D35: 30736019.31 | E35: 8088426.134
A36: Placer | B36: 13984445.13 | C36: 10628178.3 | D36: 2657044.575 | E36: 699222.2565
A37: Plumas | B37: 2467653.2 | C37: 1875416.432 | D37: 468854.108 | E37: 123382.66
A38: Riverside | B38: 107758676.8 | C38: 81896594.36 | D38: 20474148.59 | E38: 5387933.839
A39: Sacramento | B39: 64816236.61 | C39: 49260339.82 | D39: 12315084.96 | E39: 3240811.831
A40: San Benito | B40: 3734424.29 | C40: 2838162.46 | D40: 709540.6151 | E40: 186721.2145
A41: San Bernardino | B41: 105985451.2 | C41: 80548942.87 | D41: 20137235.72 | E41: 5299272.558
A42: San Diego | B42: 162263869.3 | C42: 123320540.7 | D42: 30830135.18 | E42: 8113193.468
A43: San Francisco | B43: 36784240.54 | C43: 27956022.81 | D43: 6989005.703 | E43: 1839212.027
A44: San Joaquin | B44: 34063364.47 | C44: 25888157 | D44: 6472039.249 | E44: 1703168.224
A45: San Luis Obispo | B45: 13341171.35 | C45: 10139290.23 | D45: 2534822.556 | E45: 667058.5675
A46: San Mateo | B46: 32446715.59 | C46: 24659503.85 | D46: 6164875.962 | E46: 1622335.78
A47: Santa Barbara | B47: 22984920.52 | C47: 17468539.6 | D47: 4367134.899 | E47: 1149246.026
A48: Santa Clara | B48: 89754925.08 | C48: 68213743.06 | D48: 17053435.77 | E48: 4487746.254
A49: Santa Cruz | B49: 14340650.48 | C49: 10898894.36 | D49: 2724723.591 | E49: 717032.524
A50: Shasta | B50: 9451466.33 | C50: 7183114.411 | D50: 1795778.603 | E50: 472573.3165
A51: Sierra | B51: 1543875.51 | C51: 1173345.388 | D51: 293336.3469 | E51: 77193.7755
A52: Siskiyou | B52: 3180379.83 | C52: 2417088.671 | D52: 604272.1677 | E52: 159018.9915
A53: Solano | B53: 19695352.55 | C53: 14968467.94 | D53: 3742116.984 | E53: 984767.6275
A54: Sonoma | B54: 22448346.5 | C54: 17060743.34 | D54: 4265185.835 | E54: 1122417.325
A55: Stanislaus | B55: 25846252.59 | C55: 19643151.97 | D55: 4910787.992 | E55: 1292312.63
A56: Sutter | B56: 8720457.47 | C56: 6627547.677 | D56: 1656886.919 | E56: 436022.8735
A57: Tehama | B57: 3817793.55 | C57: 2901523.098 | D57: 725380.7745 | E57: 190889.6775
A58: Tri-City | B58: 11170390.67 | C58: 8489496.909 | D58: 2122374.227 | E58: 558519.5335
A59: Trinity | B59: 1780320.58 | C59: 1353043.641 | D59: 338260.9102 | E59: 89016.029
A60: Tulare | B60: 24328481.47 | C60: 18489645.92 | D60: 4622411.479 | E60: 1216424.073
A61: Tuolumne | B61: 3531297.55 | C61: 2683786.138 | D61: 670946.5345 | E61: 176564.8775
A62: Ventura | B62: 40893418.26 | C62: 31078997.88 | D62: 7769749.469 | E62: 2044670.913
A63: Yolo | B63: 10880652.61 | C63: 8269295.984 | D63: 2067323.996 | E63: 544032.6305
A64: Grand Total | B64: =SUM(B5:B63) -> 1978857114 | C64: =SUM(C5:C63) -> 1503931407 | D64: 375982851.6 | E64: 98942855.69

Sheet drop down fields (hidden)
A1: Info_County_Code | C1: Info_Population | D1: CSS_Service_Category | E1: PEI_Combined_Standalone | F1: PEI_Program_Type | G1: INN_Expenditure_Type | H1: WET_Funding_Category | I1: CFTN_Project_Type | J1: Adjustment_MHSA_Component | K1: MHSA_Adjustment_FY | L1: FFP_Adjustment_FY | M1: Adjustment_Reason | N1: Cost_Report_Stage
A2: Alameda | B2: 1 | C2: Yes | D2: FSP | E2: Combined | F2: Prevention | G2: Project | H2: Workforce Staffing | I2: Capital Facility | J2: CSS | K2: FY 2015-16 | L2: FY 2009-10 | M2: Cost Report Reconciliation | N2: Audited
A3: Alpine | B3: 2 | C3: No | D3: Non-FSP | E3: Standalone | F3: Early Intervention | G3: Project Administration | H3: Training/Technical Assistance | I3: Technological Need | J3: PEI | K3: FY 2016-17 | L3: FY 2010-11 | M3: Cost Report Audit | N3: Settled
A4: Amador | B4: 3 | F4: Outreach | G4: Project Evaluation | H4: MH Career Pathways | J4: INN | L4: FY 2011-12 | M4: SDMC Chart Audit | N4: Initial
A5: Berkeley City | B5: 65 | F5: Stigma & Discrimination Reduction | H5: Residency/Internship | J5: WET | L5: FY 2012-13 | M5: Local Quality Assurance Audit
A6: Butte | B6: 4 | F6: Suicide Prevention | H6: Financial Incentive | J6: CFTN | L6: FY 2013-14 | M6: Error
A7: Calaveras | B7: 5 | F7: Access and Linkage | J7: WET RP | L7: FY 2014-15 | M7: Other
A8: Colusa | B8: 6 | F8: Improving Timely Access | J8: PEI SW | L8: FY 2015-16
A9: Contra Costa | B9: 7 | F9: Combined Summary | J9: MHSA HP | L9: FY 2016-17
A10: Del Norte | B10: 8 | J10: Prudent Reserve
A11: El Dorado | B11: 9
A12: Fresno | B12: 10
A13: Glenn | B13: 11
A14: Humboldt | B14: 12
A15: Imperial | B15: 13
A16: Inyo | B16: 14
A17: Kern | B17: 15
A18: Kings | B18: 16
A19: Lake | B19: 17
A20: Lassen | B20: 18
A21: Los Angeles | B21: 19
A22: Madera | B22: 20
A23: Marin | B23: 21
A24: Mariposa | B24: 22
A25: Mendocino | B25: 23
A26: Merced | B26: 24
A27: Modoc | B27: 25
A28: Mono | B28: 26
A29: Monterey | B29: 27
A30: Napa | B30: 28
A31: Nevada | B31: 29
A32: Orange | B32: 30
A33: Placer | B33: 31
A34: Plumas | B34: 32
A35: Riverside | B35: 33
A36: Sacramento | B36: 34
A37: San Benito | B37: 35
A38: San Bernardino | B38: 36
A39: San Diego | B39: 37
A40: San Francisco | B40: 38
A41: San Joaquin | B41: 39
A42: San Luis Obispo | B42: 40
A43: San Mateo | B43: 41
A44: Santa Barbara | B44: 42
A45: Santa Clara | B45: 43
A46: Santa Cruz | B46: 44
A47: Shasta | B47: 45
A48: Sierra | B48: 46
A49: Siskiyou | B49: 47
A50: Solano | B50: 48
A51: Sonoma | B51: 49
A52: Stanislaus | B52: 50
A53: Sutter/Yuba | B53: 63
A54: Tehama | B54: 52
A55: Tri-City | B55: 66
A56: Trinity | B56: 53
A57: Tulare | B57: 54
A58: Tuolumne | B58: 55
A59: Ventura | B59: 56
A60: Yolo | B60: 57

Sheet E-1 CountyState2017 (hidden)
D1: About the Data
A2: E-1: State/County Population Estimates with Annual Percent Change
A3: January 1, 2017 and 2018
A5: State/County | B5: Total Population | D5: Percent
B6: 2017-01-01 | C6: 2018-01-01 | D6: Change | E6: County Population: Over 200,000? (Yes or No)
A8: California | B8: 39500973 | C8: 39809693 | D8: 0.8
A10: Alameda | B10: 1646405 | C10: 1660202 | D10: 0.8 | E10: =IF(B10>=200000,"Yes", "No") -> Yes
A11: Alpine | B11: 1156 | C11: 1154 | D11: -0.2 | E11: =IF(B11>=200000,"Yes", "No") -> No
A12: Amador | B12: 38382 | C12: 38094 | D12: -0.8 | E12: No
A13: Butte | B13: 226403 | C13: 227621 | D13: 0.5 | E13: Yes
A14: Calaveras | B14: 45175 | C14: 45157 | D14: 0 | E14: No
A15: Colusa | B15: 22050 | C15: 22098 | D15: 0.2 | E15: No
A16: Contra Costa | B16: 1139313 | C16: 1149363 | D16: 0.9 | E16: Yes
A17: Del Norte | B17: 27060 | C17: 27221 | D17: 0.6 | E17: No
A18: El Dorado | B18: 186223 | C18: 188399 | D18: 1.2 | E18: No
A19: Fresno | B19: 995233 | C19: 1007229 | D19: 1.2 | E19: Yes
A20: Glenn | B20: 28730 | C20: 28796 | D20: 0.2 | E20: No
A21: Humboldt | B21: 136430 | C21: 136002 | D21: -0.3 | E21: No
A22: Imperial | B22: 187921 | C22: 190624 | D22: 1.4 | E22: No
A23: Inyo | B23: 18598 | C23: 18577 | D23: -0.1 | E23: No
A24: Kern | B24: 896101 | C24: 905801 | D24: 1.1 | E24: Yes
A25: Kings | B25: 149559 | C25: 151662 | D25: 1.4 | E25: No
A26: Lake | B26: 64740 | C26: 65081 | D26: 0.5 | E26: No
A27: Lassen | B27: 30661 | C27: 30911 | D27: 0.8 | E27: No
A28: Los Angeles | B28: 10231271 | C28: 10283729 | D28: 0.5 | E28: Yes
A29: Madera | B29: 156963 | C29: 158894 | D29: 1.2 | E29: No
A30: Marin | B30: 263262 | C30: 263886 | D30: 0.2 | E30: Yes
A31: Mariposa | B31: 18137 | C31: 18129 | D31: 0 | E31: No
A32: Mendocino | B32: 89092 | C32: 89299 | D32: 0.2 | E32: No
A33: Merced | B33: 275104 | C33: 279977 | D33: 1.8 | E33: Yes
A34: Modoc | B34: 9562 | C34: 9612 | D34: 0.5 | E34: No
A35: Mono | B35: 13759 | C35: 13822 | D35: 0.5 | E35: No
A36: Monterey | B36: 442149 | C36: 443281 | D36: 0.3 | E36: Yes
A37: Napa | B37: 141784 | C37: 141294 | D37: -0.3 | E37: No
A38: Nevada | B38: 98613 | C38: 99155 | D38: 0.5 | E38: No
A39: Orange | B39: 3198968 | C39: 3221103 | D39: 0.7 | E39: Yes
A40: Placer | B40: 383173 | C40: 389532 | D40: 1.7 | E40: Yes
A41: Plumas | B41: 19818 | C41: 19773 | D41: -0.2 | E41: No
A42: Riverside | B42: 2382640 | C42: 2415955 | D42: 1.4 | E42: Yes
A43: Sacramento | B43: 1513415 | C43: 1529501 | D43: 1.1 | E43: Yes
A44: San Benito | B44: 56879 | C44: 57088 | D44: 0.4 | E44: No
A45: San Bernardino | B45: 2155590 | C45: 2174938 | D45: 0.9 | E45: Yes
A46: San Diego | B46: 3309509 | C46: 3337456 | D46: 0.8 | E46: Yes
A47: San Francisco | B47: 874008 | C47: 883963 | D47: 1.1 | E47: Yes
A48: San Joaquin | B48: 747263 | C48: 758744 | D48: 1.5 | E48: Yes
A49: San Luis Obispo | B49: 279210 | C49: 280101 | D49: 0.3 | E49: Yes
A50: San Mateo | B50: 770256 | C50: 774155 | D50: 0.5 | E50: Yes
A51: Santa Barbara | B51: 450025 | C51: 453457 | D51: 0.8 | E51: Yes
A52: Santa Clara | B52: 1937473 | C52: 1956598 | D52: 1 | E52: Yes
A53: Santa Cruz | B53: 276504 | C53: 276864 | D53: 0.1 | E53: Yes
A54: Shasta | B54: 178148 | C54: 178271 | D54: 0.1 | E54: No
A55: Sierra | B55: 3203 | C55: 3207 | D55: 0.1 | E55: No
A56: Siskiyou | B56: 44655 | C56: 44612 | D56: -0.1 | E56: No
A57: Solano | B57: 436640 | C57: 439793 | D57: 0.7 | E57: Yes
A58: Sonoma | B58: 504613 | C58: 503332 | D58: -0.3 | E58: Yes
A59: Stanislaus | B59: 549976 | C59: 555624 | D59: 1 | E59: Yes
A60: Sutter | B60: 96919 | C60: 97238 | D60: 0.3 | E60: No
A61: Tehama | B61: 63949 | C61: 64039 | D61: 0.1 | E61: No
A62: Trinity | B62: 13634 | C62: 13635 | D62: 0 | E62: No
A63: Tulare | B63: 470716 | C63: 475834 | D63: 1.1 | E63: Yes
A64: Tuolumne | B64: 54725 | C64: 54740 | D64: 0 | E64: No
A65: Ventura | B65: 855910 | C65: 859073 | D65: 0.4 | E65: Yes
A66: Yolo | B66: 218673 | C66: 221270 | D66: 1.2 | E66: Yes
A67: Yuba | B67: 74645 | C67: 74727 | D67: 0.1 | E67: No
A69: Sutter/Yuba | B69: =B60+B67 -> 171564 | C69: =C60+C67 -> 171965 | E69: No
A70: Berkeley City | B70: 120700 | C70: 121874 | D70: 1 | E70: No
A71: Tri-City | B71: =B73+B74+B75 -> 224180 | C71: =C73+C74+C75 -> 225393 | E71: Yes
A73: Claremont | B73: 36293 | C73: 36446 | D73: 0.4
A74: La Verne | B74: 33169 | C74: 33260 | D74: 0.3
A75: Pomona | B75: 154718 | C75: 155687 | D75: 0.6
A78: Department of Finance
A79: Demographic Research Unit
A80: Phone: (916) 323-4086
A82: For more information: http://www.dof.ca.gov/research/demographic/reports/estimates/e-1/view.php
A83: Released on May 1, 2017
